{"text_format":"1","workbook":"xlsx","n_sheets":6,"sheets":["New Topics","Start","Import","Sheet2","Sheet3","Index"],"not_rendered":{"charts":0,"images":145,"macros":1,"external_links":0,"defined_names":0,"comments":2,"pivot_tables":0},"unopened":[],"bounds":{"document_bytes":16777216,"sheet_cells":100000,"rows_first":2000,"rows_last":500,"rows_between":2000,"halvings":0,"cell_chars":16384,"cell_head_chars":4096},"cells_cut":0,"cells_raw":0,"read":"whole","date_system":"1900"}

{"sheet":"New Topics","index":0,"n_rows":0,"n_cols":0,"rows_kept":0,"cut":false,"hidden":true,"merged":[]}

{"sheet":"Start","index":1,"n_rows":29,"n_cols":16,"rows_kept":29,"cut":false,"hidden":false,"merged":[]}
[{"$f":"CELL(\"Address\",A1)","v":"$A$1"},2,null,{"$f":"INDIRECT(A3)","v":45982.477905092594},"Entry?",{"$f":"INDIRECT(A4)","v":"Dean62"},"Entry?",null,"Update in progress",null,"New index"]
[null,null,null,null,{"$f":"D1>0","v":true},null,{"$f":"F1=0","v":false},null,{"$f":"$D$1=I1","v":false},null,{"$f":"$D$1=K1","v":false},{"$f":"OR(I2,K2)","v":false},{"$f":"OR($D$1=0,K2)","v":false}]
["Import!I1",null,null,null,null,"There is an exising index, last updated ",null,"(Find the last entry on or before the above date. All entries prior to this are new. Note If that is not page 1, append the new entries on subsequent pages.)"]
["Import!A2",null,null,null,null,"To create a new Index:",null,"Paste entries from subsequent pages below these to make one continuous list."]
[null,null,null,null,null,{"$f":"\"Go to step \" & IF(G2,2,4)","v":"Go to step 4"},null,"created since the index was last updated.","from the selected forum.",null,null,null,null,null,null,"\" from the selected forum.\""]
["To create a new Index or update an existing one:"]
[]
[null,null,null,null,null,null,{"$f":"IF(L2,I1,IF(E2,F3,F4))","v":"There is an exising index, last updated "},{"$f":"IF(L2,F5,IF(E2,D1,\"\"))","v":"2025-11-21T11:28:11"}]
[]
[null,1,{"$f":"\"Add topics \" & IF(E2,H5,I5)","v":"Add topics created since the index was last updated."}]
[]
[null,2,"Open the","Historical","forum on SOS and copy the rows containing new topic titles."]
[null,null,{"$f":"IF(M2,\"\",H3)","v":"(Find the last entry on or before the above date. All entries prior to this are new. Note If that is not page 1, append the new entries on subsequent pages.)"}]
[]
[null,3,"Paste these into cell A1 on the 'New Topics' sheet and return to this sheet."]
[null,null,{"$f":"IF(M2,H4,\"\")","v":""}]
[]
[null,4,"Click [Extract data] to copy the names and links from the' Import' sheet."]
[]
[null,5,"On sheet 3, enter any missing ship's names in column 'A' Omit 'HMS', 'USS' etc."]
[]
[null,6,"At this point, you may continue or simply click [Finish]"]
[]
[]
[null,"Note:"]
[null,null,"If you are logged in as a \"Staff Member\" extra fields may be added to an entry on the forum page."]
[null,null,"This will create errors in th [Extract data] process."]
[]
[null,null,"Log out before importing new topics."]

{"sheet":"Import","index":2,"n_rows":685,"n_cols":9,"rows_kept":685,"cut":false,"hidden":false,"merged":[]}
["My 1/72 scale aircraft","https://shipsofscale.com/sosforums/threads/my-1-72-scale-aircraft.17224/",null,null,null,null,null,null,"2025-11-21T11:28:11"]
["Dean62"]
["Jun 26, 2025"]
["15 16 17 18 19 20 21 22 23 24"]
["Replies"]
[464]
["Views"]
[26704]
["Yesterday at 10:19 PM"]
["Corsair"]
["Triumph Tr6, 3d printed large scale","https://shipsofscale.com/sosforums/threads/triumph-tr6-3d-printed-large-scale.17843/"]
["François"]
["Oct 5, 2025"]
["2 3"]
["Replies"]
[41]
["Views"]
[1315]
["Yesterday at 8:48 PM"]
["François"]
["Airfix SEPECAT JAGUAR GR1 1/48 by Smithy","https://shipsofscale.com/sosforums/threads/airfix-sepecat-jaguar-gr1-1-48-by-smithy.18048/"]
["Smithy"]
["Nov 6, 2025"]
["2 3"]
["Replies"]
[59]
["Views"]
[1096]
["Yesterday at 2:08 PM"]
["Dean62"]
["Model of classic RuneScape king black dragon - piñata","https://shipsofscale.com/sosforums/threads/model-of-classic-runescape-king-black-dragon-pi%C3%B1ata.17642/"]
["DerezzedDragon"]
["Aug 31, 2025"]
["2 3 4 5 6"]
["Replies"]
[115]
["Views"]
[4111]
["Wednesday at 11:06 AM"]
["Corsair"]
["NHI Kolibri N-3, scale 1:48, scratch build","https://shipsofscale.com/sosforums/threads/nhi-kolibri-n-3-scale-1-48-scratch-build.15209/"]
["RDN1954"]
["Aug 30, 2024"]
["10 11 12 13 14 15 16 17 18 19"]
["Replies"]
[371]
["Views"]
[22045]
["Nov 12, 2025"]
["GrantTyler"]
["My plane builds since 2008","https://shipsofscale.com/sosforums/threads/my-plane-builds-since-2008.17801/"]
["kg4kpg"]
["Sep 26, 2025"]
["Replies"]
[15]
["Views"]
[790]
["Oct 28, 2025"]
["RDN1954"]
["Wright Brothers \"Flyer\" 1903","https://shipsofscale.com/sosforums/threads/wright-brothers-flyer-1903.15124/"]
["Daniel20"]
["Aug 19, 2024"]
["6 7 8 9 10 11 12 13 14 15"]
["Replies"]
[292]
["Views"]
[15849]
["Oct 10, 2025"]
["Ted Robinson"]
["Revell 68 Corvette 1/25 scale","https://shipsofscale.com/sosforums/threads/revell-68-corvette-1-25-scale.17747/"]
["Dean62"]
["Sep 17, 2025"]
[2]
["Replies"]
[22]
["Views"]
[2000]
["Oct 10, 2025"]
["Dean62"]
["Marvel's Hydra Coupe 1/12 scale full scratch build","https://shipsofscale.com/sosforums/threads/marvels-hydra-coupe-1-12-scale-full-scratch-build.14926/"]
["François"]
["Jul 24, 2024"]
["8 9 10 11 12 13 14 15 16 17"]
["Replies"]
[329]
["Views"]
[21014]
["Oct 6, 2025"]
["rshousha"]
["Another NASCAR","https://shipsofscale.com/sosforums/threads/another-nascar.17802/"]
["Donnie"]
["Sep 26, 2025"]
["Replies"]
[1]
["Views"]
[260]
["Sep 27, 2025"]
["Donnie"]
["Chevrolet Corvette 2022 Stingray Coupe","https://shipsofscale.com/sosforums/threads/chevrolet-corvette-2022-stingray-coupe.17545/"]
["Donnie"]
["Aug 16, 2025"]
[2]
["Replies"]
[39]
["Views"]
[2776]
["Sep 13, 2025"]
["535i"]
["Sopwith Camel & Fokker Triplane.","https://shipsofscale.com/sosforums/threads/sopwith-camel-fokker-triplane.17661/"]
["Hornet"]
["Sep 3, 2025"]
["Replies"]
[13]
["Views"]
[1276]
["Sep 9, 2025"]
["stuglo"]
["NASCAR: Keselowski #9 car Build","https://shipsofscale.com/sosforums/threads/nascar-keselowski-9-car-build.17509/"]
["Donnie"]
["Aug 9, 2025"]
["Replies"]
[16]
["Views"]
[758]
["Aug 16, 2025"]
["Donnie"]
["Mercedes 300 SL","https://shipsofscale.com/sosforums/threads/mercedes-300-sl.17508/"]
["Donnie"]
["Aug 9, 2025"]
["Replies"]
[0]
["Views"]
[92]
["Aug 9, 2025"]
["Donnie"]
["Indonesian brass Lantaka cannon miniature version (fires)","https://shipsofscale.com/sosforums/threads/indonesian-brass-lantaka-cannon-miniature-version-fires.17497/"]
["Rawiri"]
["Aug 7, 2025"]
["Replies"]
[2]
["Views"]
[177]
["Aug 8, 2025"]
["Rawiri"]
["Model Airways Sopwith Camel 1/16 scale [COMPLETED BUILD]","https://shipsofscale.com/sosforums/threads/model-airways-sopwith-camel-1-16-scale.9260/"]
["Dean62"]
["Feb 11, 2022"]
["18 19 20 21 22 23 24 25 26 27"]
["Replies"]
[536]
["Views"]
[72263]
["Jul 21, 2025"]
["Dean62"]
["Amati victory model stagecoach 1:10","https://shipsofscale.com/sosforums/threads/amati-victory-model-stagecoach-1-10.10177/"]
["sideliner"]
["Jul 21, 2022"]
["Replies"]
[16]
["Views"]
[2956]
["Jul 10, 2025"]
["Roger J"]
["Du Doch Nicht!! Eduard 1/72 scale [COMPLETED BUILD]","https://shipsofscale.com/sosforums/threads/du-doch-nicht-eduard-1-72-scale.12266/"]
["Dean62"]
["Jul 17, 2023"]
["2 3 4 5 6 7 8 9"]
["Replies"]
[167]
["Views"]
[15517]
["Jun 28, 2025"]
["Norgale"]
["Ferrari 166 Barchetta 1/18","https://shipsofscale.com/sosforums/threads/ferrari-166-barchetta-1-18.17152/"]
["TRS7139"]
["Jun 16, 2025"]
["Replies"]
[1]
["Views"]
[110]
["Jun 28, 2025"]
["Ettienne"]
["Guillows P-38 Lightning","https://shipsofscale.com/sosforums/threads/guillows-p-38-lightning.15329/"]
["Dean62"]
["Sep 17, 2024"]
["10 11 12 13 14 15 16 17 18 19"]
["Replies"]
[363]
["Views"]
[19944]
["Jun 26, 2025"]
["Dean62"]
["Model Trailways 1/2 Scale Concord Stagecoach","https://shipsofscale.com/sosforums/threads/model-trailways-1-2-scale-concord-stagecoach.17146/"]
["Lance"]
["Jun 15, 2025"]
["Replies"]
[19]
["Views"]
[962]
["Jun 26, 2025"]
["Lance"]
["1/24 Ferrari GTO 1964","https://shipsofscale.com/sosforums/threads/1-24-ferrari-gto-1964.17133/"]
["TRS7139"]
["Jun 13, 2025"]
["Replies"]
[2]
["Views"]
[145]
["Jun 14, 2025"]
["TRS7139"]
["1/43 Ferrari GTO","https://shipsofscale.com/sosforums/threads/1-43-ferrari-gto.17135/"]
["TRS7139"]
["Jun 13, 2025"]
["Replies"]
[0]
["Views"]
[89]
["Jun 13, 2025"]
["TRS7139"]
["1/12 Brabham BT45","https://shipsofscale.com/sosforums/threads/1-12-brabham-bt45.17134/"]
["TRS7139"]
["Jun 13, 2025"]
["Replies"]
[0]
["Views"]
[86]
["Jun 13, 2025"]
["TRS7139"]
["1/12 Porsche 908/3","https://shipsofscale.com/sosforums/threads/1-12-porsche-908-3.17132/"]
["TRS7139"]
["Jun 13, 2025"]
["Replies"]
[0]
["Views"]
[95]
["Jun 13, 2025"]
["TRS7139"]
["Finished C-47 \"Dakota\"","https://shipsofscale.com/sosforums/threads/finished-c-47-dakota.17010/"]
["uncchains"]
["May 26, 2025"]
["Replies"]
[7]
["Views"]
[755]
["Jun 6, 2025"]
["uncchains"]
["Ayrton Senna’s Lotus Renault 97T 1:8 Scale Metal","https://shipsofscale.com/sosforums/threads/ayrton-senna%E2%80%99s-lotus-renault-97t-1-8-scale-metal.15031/"]
["Donnie"]
["Aug 7, 2024"]
[2]
["Replies"]
[25]
["Views"]
[2743]
["Jun 5, 2025"]
["535i"]
["Model Airways Sopwith Camel [COMPLETED BUILD]","https://shipsofscale.com/sosforums/threads/model-airways-sopwith-camel.9931/"]
["Donnie"]
["Jun 4, 2022"]
["2 3 4 5 6"]
["Replies"]
[112]
["Views"]
[8674]
["Thursday at 11:39 AM"]
["jbradford"]
["Avro Anson Mk.1 - Plastic by Airfix in 1/48 Scale - Build by Smithy","https://shipsofscale.com/sosforums/threads/avro-anson-mk-1-plastic-by-airfix-in-1-48-scale-build-by-smithy.16529/"]
["Smithy"]
["Mar 14, 2025"]
["2 3 4 5 6 7 8"]
["Replies"]
[151]
["Views"]
[3883]
["May 25, 2025"]
["Smithy"]
["Pocher 1:8 scale Porsche 917K","https://shipsofscale.com/sosforums/threads/pocher-1-8-scale-porsche-917k.15666/"]
["Dean62"]
["Nov 7, 2024"]
["2 3 4 5 6 7 8 9 10"]
["Replies"]
[181]
["Views"]
[5104]
["Wednesday at 12:51 AM"]
["Dean62"]
["Bugatti Type 35B [COMPLETED BUILD]","https://shipsofscale.com/sosforums/threads/bugatti-type-35b.14981/"]
["Donnie"]
["Jul 31, 2024"]
["2 3 4"]
["Replies"]
[61]
["Views"]
[2366]
["Mar 1, 2025"]
["cdnfu"]
["Pocher 1:8 scale Lotus 72 [COMPLETED BUILD]","https://shipsofscale.com/sosforums/threads/pocher-1-8-scale-lotus-72.11917/"]
["Dean62"]
["May 13, 2023"]
["7 8 9 10 11 12 13 14 15 16"]
["Replies"]
[313]
["Views"]
[28823]
["Dec 18, 2024"]
["Tony P"]
["1964 Dodge 330 SS Ramchargers","https://shipsofscale.com/sosforums/threads/1964-dodge-330-ss-ramchargers.15552/"]
["Donnie"]
["Oct 21, 2024"]
[2]
["Replies"]
[35]
["Views"]
[875]
["Nov 18, 2024"]
["535i"]
["Medicine Wagon","https://shipsofscale.com/sosforums/threads/medicine-wagon.15131/"]
["Gravman"]
["Aug 20, 2024"]
["Replies"]
[6]
["Views"]
[175]
["Wednesday at 5:35 AM"]
["Smithy"]
["Fantasy Flying Machine 1:30 scale (approx.)","https://shipsofscale.com/sosforums/threads/fantasy-flying-machine-1-30-scale-approx.12239/"]
["Carleroo"]
["Jul 12, 2023"]
[2]
["Replies"]
[23]
["Views"]
[1343]
["Wednesday at 5:24 AM"]
["Smithy"]
["Model Airways Albatros - D.va 1/16 scale","https://shipsofscale.com/sosforums/threads/model-airways-albatros-d-va-1-16-scale.9745/"]
["Dean62"]
["Apr 28, 2022"]
[2]
["Replies"]
[37]
["Views"]
[4672]
["Sep 23, 2024"]
["Dean62"]
["Fokker Spin III, scale 1:48, scratch build [COMPLETED BUILD]","https://shipsofscale.com/sosforums/threads/fokker-spin-iii-scale-1-48-scratch-build.13988/"]
["RDN1954"]
["Mar 13, 2024"]
["6 7 8 9 10 11 12 13 14 15"]
["Replies"]
[291]
["Views"]
[11800]
["Sep 18, 2024"]
["RDN1954"]
["Stagecoach Build - By Artesanía Latina [COMPLETED BUILD]","https://shipsofscale.com/sosforums/threads/stagecoach-build-by-artesan%C3%ADa-latina.13490/"]
["STGCS"]
["Jan 21, 2024"]
["2 3 4 5"]
["Replies"]
[82]
["Views"]
[4333]
["Aug 12, 2024"]
["Snowy"]
["Stephenson's Rocket, Early Locomotive - by OcCre - a49kid - Wayne","https://shipsofscale.com/sosforums/threads/stephensons-rocket-early-locomotive-by-occre-a49kid-wayne.14671/"]
["a49kid"]
["Jun 21, 2024"]
["Replies"]
[9]
["Views"]
[576]
["Jul 22, 2024"]
["KeithLyall"]
["1930 Bentley Blower by Aifix 1/12 build log [COMPLETED BUILD]","https://shipsofscale.com/sosforums/threads/1930-bentley-blower-by-aifix-1-12-build-log.10782/"]
["François"]
["Nov 4, 2022"]
["12 13 14 15 16 17 18 19 20 21"]
["Replies"]
[404]
["Views"]
[28225]
["Jul 14, 2024"]
["François"]
["1/12 scale Alfa Romeo 8c 2300 roadster build log [COMPLETED BUILD]","https://shipsofscale.com/sosforums/threads/1-12-scale-alfa-romeo-8c-2300-roadster-build-log.10977/"]
["François"]
["Dec 5, 2022"]
["2 3 4 5 6 7 8 9 10"]
["Replies"]
[194]
["Views"]
[17998]
["Tuesday at 6:57 AM"]
["Uwek"]
["Fokker D.VII Rhoden 1:48","https://shipsofscale.com/sosforums/threads/fokker-d-vii-rhoden-1-48.13987/"]
["RDN1954"]
["Mar 13, 2024"]
["Replies"]
[0]
["Views"]
[77]
["Mar 13, 2024"]
["RDN1954"]
["Model Airways-The Wright Flyer-Scale 1/16","https://shipsofscale.com/sosforums/threads/model-airways-the-wright-flyer-scale-1-16.3075/"]
["Barry1"]
["Mar 25, 2019"]
["2 3 4"]
["Replies"]
[77]
["Views"]
[11249]
["Mar 7, 2024"]
["Brian Amato"]
["Airfix 1/12, 1930 Bentley Blower build log","https://shipsofscale.com/sosforums/threads/airfix-1-12-1930-bentley-blower-build-log.10782/",null,null,null,null,null,null,"2024-01-31T16:50:10"]
["François"]
["Nov 4, 2022"]
["2 3 4 5 6 7 8 9 10 11"]
["Replies"]
[219]
["Views"]
[11855]
["Today at 2:44 AM"]
["Richard O"]
["Alpha Romeo 8C 2300 Monza - Italeri [COMPLETED BUILD]","https://shipsofscale.com/sosforums/threads/alpha-romeo-8c-2300-monza-italeri.10453/"]
["Donnie"]
["Sep 13, 2022"]
["2 3 4"]
["Replies"]
[73]
["Views"]
[4142]
["Nov 24, 2023"]
["Dean62"]
["Brabham BT44B Martini 1975 by Tamiya 1/12th scale","https://shipsofscale.com/sosforums/threads/brabham-bt44b-martini-1975-by-tamiya-1-12th-scale.11257/"]
["Dean62"]
["Jan 19, 2023"]
[2]
["Replies"]
[22]
["Views"]
[1191]
["Sep 7, 2023"]
["Dean62"]
["Guns of History - United States Christian Commission Civil War Coffee Wagon - Model Shipways - Build Log NCC (Navy-Curtis Craft) - Scale 1:16","https://shipsofscale.com/sosforums/threads/guns-of-history-united-states-christian-commission-civil-war-coffee-wagon-model-shipways-build-log-ncc-navy-curtis-craft-scale-1-16.12496/"]
["BMT"]
["Sep 3, 2023"]
["Replies"]
[7]
["Views"]
[339]
["Sep 6, 2023"]
["BMT"]
["Motorcycle from scratch","https://shipsofscale.com/sosforums/threads/motorcycle-from-scratch.12446/"]
["TimV"]
["Aug 25, 2023"]
["Replies"]
[5]
["Views"]
[333]
["Sep 4, 2023"]
["Donnie"]
["Mercedes WW I Aero Engine (Model Airways - 1:16) [COMPLETED BUILD]","https://shipsofscale.com/sosforums/threads/mercedes-ww-i-aero-engine-model-airways-1-16.10824/"]
["JohnR"]
["Nov 11, 2022"]
["Replies"]
[10]
["Views"]
[1139]
["Jul 27, 2023"]
["Jimsky"]
["Model Airways Fokker Eindecker [COMPLETED BUILD]","https://shipsofscale.com/sosforums/threads/model-airways-fokker-eindecker.10142/"]
["François"]
["Jul 13, 2022"]
["2 3 4"]
["Replies"]
[68]
["Views"]
[6516]
["Apr 24, 2023"]
["John Reid"]
["Historic Artillery Gatling Gun by Model Expo","https://shipsofscale.com/sosforums/threads/historic-artillery-gatling-gun-by-model-expo.11440/"]
["Kurt Konrath"]
["Feb 19, 2023"]
["Replies"]
[2]
["Views"]
[347]
["Feb 19, 2023"]
["Kurt Konrath"]
["Display Case for Wright Flyer","https://shipsofscale.com/sosforums/threads/display-case-for-wright-flyer.10620/"]
["JohnR"]
["Oct 10, 2022"]
["Replies"]
[2]
["Views"]
[773]
["Oct 16, 2022"]
["Dean62"]
["1:46 P-400 Airacobra - 67th Fighter Squadron - Guadalcanal (Aug 1942) [COMPLETED BUILD]","https://shipsofscale.com/sosforums/threads/1-46-p-400-airacobra-67th-fighter-squadron-guadalcanal-aug-1942.8831/"]
["JohnR"]
["Dec 20, 2021"]
["Replies"]
[18]
["Views"]
[1478]
["Aug 13, 2022"]
["JohnR"]
["1/72 Italeri MB 339 A during Falklands War 1982","https://shipsofscale.com/sosforums/threads/1-72-italeri-mb-339-a-during-falklands-war-1982.10033/"]
["SigEp Ziggy"]
["Jun 25, 2022"]
["Replies"]
[7]
["Views"]
[933]
["Aug 1, 2022"]
["SigEp Ziggy"]
["Oberursel UR III WW I Rotary Engine (Model Airways; 1:16) [COMPLETED BUILD]","https://shipsofscale.com/sosforums/threads/oberursel-ur-iii-ww-i-rotary-engine-model-airways-1-16.9708/"]
["JohnR"]
["Apr 23, 2022"]
["Replies"]
[4]
["Views"]
[1288]
["Jun 4, 2022"]
["Donnie"]
["1869 Allerton Steam Pumper Model [COMPLETED BUILD]","https://shipsofscale.com/sosforums/threads/1869-allerton-steam-pumper-model.8176/"]
["Bluebeard"]
["Sep 5, 2021"]
["Replies"]
[13]
["Views"]
[1452]
["May 22, 2022"]
["Red dragon"]
["Old Ironsides Replica Cannon","https://shipsofscale.com/sosforums/threads/old-ironsides-replica-cannon.8747/"]
["GAStan"]
["Dec 8, 2021"]
["Replies"]
[12]
["Views"]
[1177]
["Apr 23, 2022"]
["JohnR"]
["American Coastal Cannon - Mantua - 1:17","https://shipsofscale.com/sosforums/threads/american-coastal-cannon-mantua-1-17.9546/"]
["JohnR"]
["Mar 29, 2022"]
["Replies"]
[0]
["Views"]
[724]
["Mar 29, 2022"]
["JohnR"]
["Wright Flyer - Model Airways - 1:16 [COMPLETED BUILD]","https://shipsofscale.com/sosforums/threads/wright-flyer-model-airways-1-16.8858/"]
["JohnR"]
["Dec 24, 2021"]
[2]
["Replies"]
[26]
["Views"]
[3800]
["Mar 29, 2022"]
["JohnR"]
["Artesania Latina 1:50 Bombarda s.XV Gun Placement Display","https://shipsofscale.com/sosforums/threads/artesania-latina-1-50-bombarda-s-xv-gun-placement-display.8845/"]
["Kurt Konrath"]
["Dec 22, 2021"]
["Replies"]
[3]
["Views"]
[998]
["Dec 23, 2021"]
["Kurt Konrath"]
["Sopwith Camel F-1, WWI Fighter, 1:16 scale (3/4\" = 1')","https://shipsofscale.com/sosforums/threads/sopwith-camel-f-1-wwi-fighter-1-16-scale-3-4-1.3206/"]
["DocBlake"]
["May 10, 2019"]
[2]
["Replies"]
[37]
["Views"]
[12513]
["Dec 22, 2021"]
["Kurt Konrath"]
["Black Pearl - Metal Earth","https://shipsofscale.com/sosforums/threads/black-pearl-metal-earth.8716/"]
["JohnR"]
["Dec 5, 2021"]
["Replies"]
[0]
["Views"]
[789]
["Dec 5, 2021"]
["JohnR"]
["Gatling Gun - Metal Earth","https://shipsofscale.com/sosforums/threads/gatling-gun-metal-earth.8670/"]
["JohnR"]
["Nov 28, 2021"]
["Replies"]
[7]
["Views"]
[1036]
["Nov 30, 2021"]
["Uwek"]
["Da Vinci Aerial Screw","https://shipsofscale.com/sosforums/threads/da-vinci-aerial-screw.8577/"]
["JohnR"]
["Nov 14, 2021"]
["Replies"]
[2]
["Views"]
[878]
["Nov 14, 2021"]
["JohnR"]
["Model Trailways Concord Stagecoach 1:12 Scale","https://shipsofscale.com/sosforums/threads/model-trailways-concord-stagecoach-1-12-scale.2771/"]
["Barry1"]
["Dec 28, 2018"]
["2 3 4"]
["Replies"]
[64]
["Views"]
[15156]
["Jun 25, 2021"]
["hakan ceylan06"]
["Phillips 66 Oil Tank Wagon (Model Trailways 1:12) [COMPLETED BUILD]","https://shipsofscale.com/sosforums/threads/phillips-66-oil-tank-wagon-model-trailways-1-12.7318/"]
["JohnR"]
["Apr 4, 2021"]
["Replies"]
[14]
["Views"]
[1958]
["Jun 16, 2021"]
["Woodphile"]
["Model Airways - Clerget 9B WW I Rotary Engine - 1:16","https://shipsofscale.com/sosforums/threads/model-airways-clerget-9b-ww-i-rotary-engine-1-16.7074/"]
["JohnR"]
["Feb 28, 2021"]
["Replies"]
[16]
["Views"]
[2647]
["Jun 11, 2021"]
["JohnR"]
["18th Century Ship's Cannon - Completed","https://shipsofscale.com/sosforums/threads/18th-century-ships-cannon-completed.7022/"]
["JohnR"]
["Feb 20, 2021"]
["Replies"]
[0]
["Views"]
[945]
["Feb 20, 2021"]
["JohnR"]
["Model Trailways Conestoga Wagon 1:12 Scale","https://shipsofscale.com/sosforums/threads/model-trailways-conestoga-wagon-1-12-scale.2961/"]
["Barry1"]
["Feb 19, 2019"]
[2]
["Replies"]
[30]
["Views"]
[6384]
["Mar 19, 2019"]
["Barry1"]
["Model Trailways Concord Stagecoach 1:12 scale","https://shipsofscale.com/sosforums/threads/model-trailways-concord-stagecoach-1-12-scale.1202/"]
["DenisR"]
["Apr 22, 2017"]
[2]
["Replies"]
[35]
["Views"]
[7556]
["Feb 6, 2019"]
["wesmaine"]
["Build Log: Wells Fargo Stagecoach 1/12","https://shipsofscale.com/sosforums/threads/build-log-wells-fargo-stagecoach-1-12.1536/"]
["grayson72"]
["Oct 19, 2017"]
[2]
["Replies"]
[30]
["Views"]
[7592]
["Aug 25, 2018"]
["Peglegreg"]
["B-Type Bus OCCRE 1/24 scale","https://shipsofscale.com/sosforums/threads/b-type-bus-occre-1-24-scale.1714/"]
["Aginvicta"]
["Feb 2, 2018"]
[2]
["Replies"]
[33]
["Views"]
[8145]
["May 11, 2018"]
["Aginvicta"]

{"sheet":"Sheet2","index":3,"n_rows":83,"n_cols":6,"rows_kept":83,"cut":false,"hidden":false,"merged":[]}
["$B$12"]
[]
[]
[83]
[]
[]
[]
[]
[]
[]
["Model type & name","Title","Topic","Latest Post","Starter","Profile"]
[{"$error":"#N/A"},"My 1/72 scale aircraft","https://shipsofscale.com/sosforums/threads/my-1-72-scale-aircraft.17224/","https://shipsofscale.com/sosforums/threads/my-1-72-scale-aircraft.17224/page-24","Dean62",24]
[{"$error":"#N/A"},"Triumph Tr6, 3d printed large scale","https://shipsofscale.com/sosforums/threads/triumph-tr6-3d-printed-large-scale.17843/","https://shipsofscale.com/sosforums/threads/triumph-tr6-3d-printed-large-scale.17843/page-3","François",3]
[{"$error":"#N/A"},"Airfix SEPECAT JAGUAR GR1 1/48 by Smithy","https://shipsofscale.com/sosforums/threads/airfix-sepecat-jaguar-gr1-1-48-by-smithy.18048/","https://shipsofscale.com/sosforums/threads/airfix-sepecat-jaguar-gr1-1-48-by-smithy.18048/page-3","Smithy",3]
[{"$error":"#N/A"},"Model of classic RuneScape king black dragon - piñata","https://shipsofscale.com/sosforums/threads/model-of-classic-runescape-king-black-dragon-pi%C3%B1ata.17642/","https://shipsofscale.com/sosforums/threads/model-of-classic-runescape-king-black-dragon-pi%C3%B1ata.17642/page-6","DerezzedDragon",6]
["Plane - NHI H-3","NHI Kolibri N-3, scale 1:48, scratch build","https://shipsofscale.com/sosforums/threads/nhi-kolibri-n-3-scale-1-48-scratch-build.15209/","https://shipsofscale.com/sosforums/threads/nhi-kolibri-n-3-scale-1-48-scratch-build.15209/page-19","RDN1954",19]
[{"$error":"#N/A"},"My plane builds since 2008","https://shipsofscale.com/sosforums/threads/my-plane-builds-since-2008.17801/","https://shipsofscale.com/sosforums/threads/nhi-kolibri-n-3-scale-1-48-scratch-build.15209/page-19","kg4kpg"]
["Plane - Wright Flier","Wright Brothers \"Flyer\" 1903","https://shipsofscale.com/sosforums/threads/wright-brothers-flyer-1903.15124/","https://shipsofscale.com/sosforums/threads/wright-brothers-flyer-1903.15124/page-15","Daniel20",15]
[{"$error":"#N/A"},"Revell 68 Corvette 1/25 scale","https://shipsofscale.com/sosforums/threads/revell-68-corvette-1-25-scale.17747/","https://shipsofscale.com/sosforums/threads/revell-68-corvette-1-25-scale.17747/page-2","Dean62",2]
["Car - Hydra coupe","Marvel's Hydra Coupe 1/12 scale full scratch build","https://shipsofscale.com/sosforums/threads/marvels-hydra-coupe-1-12-scale-full-scratch-build.14926/","https://shipsofscale.com/sosforums/threads/marvels-hydra-coupe-1-12-scale-full-scratch-build.14926/page-17","François",17]
[{"$error":"#N/A"},"Another NASCAR","https://shipsofscale.com/sosforums/threads/another-nascar.17802/","https://shipsofscale.com/sosforums/threads/marvels-hydra-coupe-1-12-scale-full-scratch-build.14926/page-17","Donnie"]
[{"$error":"#N/A"},"Chevrolet Corvette 2022 Stingray Coupe","https://shipsofscale.com/sosforums/threads/chevrolet-corvette-2022-stingray-coupe.17545/","https://shipsofscale.com/sosforums/threads/chevrolet-corvette-2022-stingray-coupe.17545/page-2","Donnie",2]
[{"$error":"#N/A"},"Sopwith Camel & Fokker Triplane.","https://shipsofscale.com/sosforums/threads/sopwith-camel-fokker-triplane.17661/","https://shipsofscale.com/sosforums/threads/chevrolet-corvette-2022-stingray-coupe.17545/page-2","Hornet"]
[{"$error":"#N/A"},"NASCAR: Keselowski #9 car Build","https://shipsofscale.com/sosforums/threads/nascar-keselowski-9-car-build.17509/","https://shipsofscale.com/sosforums/threads/chevrolet-corvette-2022-stingray-coupe.17545/page-2","Donnie"]
[{"$error":"#N/A"},"Mercedes 300 SL","https://shipsofscale.com/sosforums/threads/mercedes-300-sl.17508/","https://shipsofscale.com/sosforums/threads/chevrolet-corvette-2022-stingray-coupe.17545/page-2","Donnie"]
[{"$error":"#N/A"},"Indonesian brass Lantaka cannon miniature version (fires)","https://shipsofscale.com/sosforums/threads/indonesian-brass-lantaka-cannon-miniature-version-fires.17497/","https://shipsofscale.com/sosforums/threads/chevrolet-corvette-2022-stingray-coupe.17545/page-2","Rawiri"]
["Plane - Sopwith Camel","Model Airways Sopwith Camel 1/16 scale [COMPLETED BUILD]","https://shipsofscale.com/sosforums/threads/model-airways-sopwith-camel-1-16-scale-completed-build.9260/","https://shipsofscale.com/sosforums/threads/model-airways-sopwith-camel-1-16-scale-completed-build.9260/page-27","Dean62",27]
["Trailways - Stagecoach","Amati victory model stagecoach 1:10","https://shipsofscale.com/sosforums/threads/amati-victory-model-stagecoach-1-10.10177/","https://shipsofscale.com/sosforums/threads/model-airways-sopwith-camel-1-16-scale-completed-build.9260/page-27","sideliner"]
["Plane - Du Doch Nicht","Du Doch Nicht!! Eduard 1/72 scale [COMPLETED BUILD]","https://shipsofscale.com/sosforums/threads/du-doch-nicht-eduard-1-72-scale-completed-build.12266/","https://shipsofscale.com/sosforums/threads/du-doch-nicht-eduard-1-72-scale-completed-build.12266/page-9","Dean62",9]
[{"$error":"#N/A"},"Ferrari 166 Barchetta 1/18","https://shipsofscale.com/sosforums/threads/ferrari-166-barchetta-1-18.17152/","https://shipsofscale.com/sosforums/threads/du-doch-nicht-eduard-1-72-scale-completed-build.12266/page-9","TRS7139"]
["Plane - P-38 Lightning","Guillows P-38 Lightning","https://shipsofscale.com/sosforums/threads/guillows-p-38-lightning.15329/","https://shipsofscale.com/sosforums/threads/guillows-p-38-lightning.15329/page-19","Dean62",19]
[{"$error":"#N/A"},"Model Trailways 1/2 Scale Concord Stagecoach","https://shipsofscale.com/sosforums/threads/model-trailways-1-2-scale-concord-stagecoach.17146/","https://shipsofscale.com/sosforums/threads/guillows-p-38-lightning.15329/page-19","Lance"]
[{"$error":"#N/A"},"1/24 Ferrari GTO 1964","https://shipsofscale.com/sosforums/threads/1-24-ferrari-gto-1964.17133/","https://shipsofscale.com/sosforums/threads/guillows-p-38-lightning.15329/page-19","TRS7139"]
[{"$error":"#N/A"},"1/43 Ferrari GTO","https://shipsofscale.com/sosforums/threads/1-43-ferrari-gto.17135/","https://shipsofscale.com/sosforums/threads/guillows-p-38-lightning.15329/page-19","TRS7139"]
[{"$error":"#N/A"},"1/12 Brabham BT45","https://shipsofscale.com/sosforums/threads/1-12-brabham-bt45.17134/","https://shipsofscale.com/sosforums/threads/guillows-p-38-lightning.15329/page-19","TRS7139"]
[{"$error":"#N/A"},"1/12 Porsche 908/3","https://shipsofscale.com/sosforums/threads/1-12-porsche-908-3.17132/","https://shipsofscale.com/sosforums/threads/guillows-p-38-lightning.15329/page-19","TRS7139"]
["Plane - C-47  Dakota","Finished C-47 \"Dakota\"","https://shipsofscale.com/sosforums/threads/finished-c-47-dakota.17010/","https://shipsofscale.com/sosforums/threads/guillows-p-38-lightning.15329/page-19","uncchains"]
["Car - Lotus Renault","Ayrton Senna’s Lotus Renault 97T 1:8 Scale Metal","https://shipsofscale.com/sosforums/threads/ayrton-senna%E2%80%99s-lotus-renault-97t-1-8-scale-metal.15031/","https://shipsofscale.com/sosforums/threads/ayrton-senna%E2%80%99s-lotus-renault-97t-1-8-scale-metal.15031/page-2","Donnie",2]
["Plane - Sopwith Camel","Model Airways Sopwith Camel [COMPLETED BUILD]","https://shipsofscale.com/sosforums/threads/model-airways-sopwith-camel-completed-build.9931/","https://shipsofscale.com/sosforums/threads/model-airways-sopwith-camel-completed-build.9931/page-6","Donnie",6]
["Smithy\nAvro Anson Mk.1 - Plastic by Airfix in 1/48 Scale - Build by Smithy\nSmithy Mar 14, 2025 2\nReplies38\nViews713\n46 minutes ago\nColonelKrypton\nFrançois\nMarvel's Hydra Coupe 1/12 scale full scratch build\nFrançois Jul 24, 2024 2 3 4 5 6 7 8\nReplies145\nViews4,506\nYesterday at 8:09 AM\nrshousha\nrshousha\nRDN1954\nNHI Kolibri N-3, scale 1:48, scratch build\nRDN1954 Aug 30, 2024 2 3 4 5 6 7 8 9 10 11\nReplies203\nViews5,185\nMonday at 9:44 PM\nPathfinder65\nPathfinder65\nDean62\nPocher 1:8 scale Porsche 917K\nDean62 Nov 7, 2024 2 3 4 5 6 7 8 9\nReplies177\nViews4,508\nSunday at 12:47 PM\nDean62\nDean62\nDean62\nGuillows P-38 Lightning\nDean62 Sep 17, 2024 8 9 10 11 12 13 14 15 16 17\nReplies327\nViews10,789\nMar 22, 2025\nJohannes\nDonnie\nBugatti Type 35B [COMPLETED BUILD]\nDonnie Jul 31, 2024 2 3 4\nReplies61\nViews2,366\nMar 1, 2025\ncdnfurball\ncdnfurball","Avro Anson Mk.1 - Plastic by Airfix in 1/48 Scale - Build by Smithy","https://shipsofscale.com/sosforums/threads/avro-anson-mk-1-plastic-by-airfix-in-1-48-scale-build-by-smithy.16529/","https://shipsofscale.com/sosforums/threads/avro-anson-mk-1-plastic-by-airfix-in-1-48-scale-build-by-smithy.16529/page-8","Smithy",8]
["Car - Porsche 917K","Pocher 1:8 scale Porsche 917K","https://shipsofscale.com/sosforums/threads/pocher-1-8-scale-porsche-917k.15666/","https://shipsofscale.com/sosforums/threads/pocher-1-8-scale-porsche-917k.15666/page-10","Dean62",10]
["Car - Bugatti Type 35B","Bugatti Type 35B [COMPLETED BUILD]","https://shipsofscale.com/sosforums/threads/bugatti-type-35b-completed-build.14981/","https://shipsofscale.com/sosforums/threads/bugatti-type-35b-completed-build.14981/page-4","Donnie",4]
["Car - Lotus","Pocher 1:8 scale Lotus 72 [COMPLETED BUILD]","https://shipsofscale.com/sosforums/threads/pocher-1-8-scale-lotus-72-completed-build.11917/","https://shipsofscale.com/sosforums/threads/pocher-1-8-scale-lotus-72-completed-build.11917/page-16","Dean62",16]
["Car - Ramchargers1963 Dodge 330 SS","1964 Dodge 330 SS Ramchargers","https://shipsofscale.com/sosforums/threads/1964-dodge-330-ss-ramchargers.15552/","https://shipsofscale.com/sosforums/threads/1964-dodge-330-ss-ramchargers.15552/page-2","Donnie",2]
["Trailways - Medicine Wagon","Medicine Wagon","https://shipsofscale.com/sosforums/threads/medicine-wagon.15131/","https://shipsofscale.com/sosforums/threads/1964-dodge-330-ss-ramchargers.15552/page-2","Gravman"]
["Plane - Fantasy","Fantasy Flying Machine 1:30 scale (approx.)","https://shipsofscale.com/sosforums/threads/fantasy-flying-machine-1-30-scale-approx.12239/","https://shipsofscale.com/sosforums/threads/fantasy-flying-machine-1-30-scale-approx.12239/page-2","Carleroo",2]
["Plane - Albatros","Model Airways Albatros - D.va 1/16 scale","https://shipsofscale.com/sosforums/threads/model-airways-albatros-d-va-1-16-scale.9745/","https://shipsofscale.com/sosforums/threads/model-airways-albatros-d-va-1-16-scale.9745/page-2","Dean62",2]
["Plane - Fokker Spin III","Fokker Spin III, scale 1:48, scratch build [COMPLETED BUILD]","https://shipsofscale.com/sosforums/threads/fokker-spin-iii-scale-1-48-scratch-build-completed-build.13988/","https://shipsofscale.com/sosforums/threads/fokker-spin-iii-scale-1-48-scratch-build-completed-build.13988/page-15","RDN1954",15]
["Trailways - Stagecoach","Stagecoach Build - By Artesanía Latina [COMPLETED BUILD]","https://shipsofscale.com/sosforums/threads/stagecoach-build-by-artesan%C3%ADa-latina-completed-build.13490/","https://shipsofscale.com/sosforums/threads/stagecoach-build-by-artesan%C3%ADa-latina-completed-build.13490/page-5","STGCS",5]
["Locomotive - Rocket","Stephenson's Rocket, Early Locomotive - by OcCre - a49kid - Wayne","https://shipsofscale.com/sosforums/threads/stephensons-rocket-early-locomotive-by-occre-a49kid-wayne.14671/","https://shipsofscale.com/sosforums/threads/stagecoach-build-by-artesan%C3%ADa-latina-completed-build.13490/page-5","a49kid"]
["Car - Bentley","1930 Bentley Blower by Aifix 1/12 build log [COMPLETED BUILD]","https://shipsofscale.com/sosforums/threads/1930-bentley-blower-by-aifix-1-12-build-log-completed-build.10782/","https://shipsofscale.com/sosforums/threads/1930-bentley-blower-by-aifix-1-12-build-log-completed-build.10782/page-21","François",21]
["Car - Alpha Romeo","1/12 scale Alfa Romeo 8c 2300 roadster build log [COMPLETED BUILD]","https://shipsofscale.com/sosforums/threads/1-12-scale-alfa-romeo-8c-2300-roadster-build-log-completed-build.10977/","https://shipsofscale.com/sosforums/threads/1-12-scale-alfa-romeo-8c-2300-roadster-build-log-completed-build.10977/page-10","François",10]
["Plane - Fokker","Fokker D.VII Rhoden 1:48","https://shipsofscale.com/sosforums/threads/fokker-d-vii-rhoden-1-48.13987/","https://shipsofscale.com/sosforums/threads/1-12-scale-alfa-romeo-8c-2300-roadster-build-log-completed-build.10977/page-10","RDN1954"]
["Plane - Wright Flyer","Model Airways-The Wright Flyer-Scale 1/16","https://shipsofscale.com/sosforums/threads/model-airways-the-wright-flyer-scale-1-16.3075/","https://shipsofscale.com/sosforums/threads/model-airways-the-wright-flyer-scale-1-16.3075/page-4","Barry1",4]
["Car - Bentley","Airfix 1/12, 1930 Bentley Blower build log","https://shipsofscale.com/sosforums/threads/airfix-1-12-1930-bentley-blower-build-log.10782/","https://shipsofscale.com/sosforums/threads/airfix-1-12-1930-bentley-blower-build-log.10782/page-11","François",11]
["Car - Alpha Romeo","Alpha Romeo 8C 2300 Monza - Italeri [COMPLETED BUILD]","https://shipsofscale.com/sosforums/threads/alpha-romeo-8c-2300-monza-italeri-completed-build.10453/","https://shipsofscale.com/sosforums/threads/alpha-romeo-8c-2300-monza-italeri-completed-build.10453/page-4","Donnie",4]
["Car - Brabham","Brabham BT44B Martini 1975 by Tamiya 1/12th scale","https://shipsofscale.com/sosforums/threads/brabham-bt44b-martini-1975-by-tamiya-1-12th-scale.11257/","https://shipsofscale.com/sosforums/threads/brabham-bt44b-martini-1975-by-tamiya-1-12th-scale.11257/page-2","Dean62",2]
["Trailways - Coffee Wagon","Guns of History - United States Christian Commission Civil War Coffee Wagon - Model Shipways - Build Log NCC (Navy-Curtis Craft) - Scale 1:16","https://shipsofscale.com/sosforums/threads/guns-of-history-united-states-christian-commission-civil-war-coffee-wagon-model-shipways-build-log-ncc-navy-curtis-craft-scale-1-16.12496/","https://shipsofscale.com/sosforums/threads/brabham-bt44b-martini-1975-by-tamiya-1-12th-scale.11257/page-2","BMT"]
["Motorcycle","Motorcycle from scratch","https://shipsofscale.com/sosforums/threads/motorcycle-from-scratch.12446/","https://shipsofscale.com/sosforums/threads/brabham-bt44b-martini-1975-by-tamiya-1-12th-scale.11257/page-2","TimV"]
["Plane - Mercede Engine","Mercedes WW I Aero Engine (Model Airways - 1:16) [COMPLETED BUILD]","https://shipsofscale.com/sosforums/threads/mercedes-ww-i-aero-engine-model-airways-1-16-completed-build.10824/","https://shipsofscale.com/sosforums/threads/brabham-bt44b-martini-1975-by-tamiya-1-12th-scale.11257/page-2","JohnR"]
["Plane - Fokker","Model Airways Fokker Eindecker [COMPLETED BUILD]","https://shipsofscale.com/sosforums/threads/model-airways-fokker-eindecker-completed-build.10142/","https://shipsofscale.com/sosforums/threads/model-airways-fokker-eindecker-completed-build.10142/page-4","François",4]
["Guns - Gatling Gun","Historic Artillery Gatling Gun by Model Expo","https://shipsofscale.com/sosforums/threads/historic-artillery-gatling-gun-by-model-expo.11440/","https://shipsofscale.com/sosforums/threads/model-airways-fokker-eindecker-completed-build.10142/page-4","Kurt Konrath"]
["Plane - Display case","Display Case for Wright Flyer","https://shipsofscale.com/sosforums/threads/display-case-for-wright-flyer.10620/","https://shipsofscale.com/sosforums/threads/model-airways-fokker-eindecker-completed-build.10142/page-4","JohnR"]
["Plane - Airacobra","1:46 P-400 Airacobra - 67th Fighter Squadron - Guadalcanal (Aug 1942) [COMPLETED BUILD]","https://shipsofscale.com/sosforums/threads/1-46-p-400-airacobra-67th-fighter-squadron-guadalcanal-aug-1942-completed-build.8831/","https://shipsofscale.com/sosforums/threads/model-airways-fokker-eindecker-completed-build.10142/page-4","JohnR"]
["Plane - MB 339 A","1/72 Italeri MB 339 A during Falklands War 1982","https://shipsofscale.com/sosforums/threads/1-72-italeri-mb-339-a-during-falklands-war-1982.10033/","https://shipsofscale.com/sosforums/threads/model-airways-fokker-eindecker-completed-build.10142/page-4","SigEp Ziggy"]
["Pl;ane - Oberursel Engine","Oberursel UR III WW I Rotary Engine (Model Airways; 1:16) [COMPLETED BUILD]","https://shipsofscale.com/sosforums/threads/oberursel-ur-iii-ww-i-rotary-engine-model-airways-1-16-completed-build.9708/","https://shipsofscale.com/sosforums/threads/model-airways-fokker-eindecker-completed-build.10142/page-4","JohnR"]
["Trailways - Steam Pumper","1869 Allerton Steam Pumper Model [COMPLETED BUILD]","https://shipsofscale.com/sosforums/threads/1869-allerton-steam-pumper-model-completed-build.8176/","https://shipsofscale.com/sosforums/threads/model-airways-fokker-eindecker-completed-build.10142/page-4","Bluebeard"]
["Guns - Cannon","Old Ironsides Replica Cannon","https://shipsofscale.com/sosforums/threads/old-ironsides-replica-cannon.8747/","https://shipsofscale.com/sosforums/threads/model-airways-fokker-eindecker-completed-build.10142/page-4","GAStan"]
["Guns - Cannon","American Coastal Cannon - Mantua - 1:17","https://shipsofscale.com/sosforums/threads/american-coastal-cannon-mantua-1-17.9546/","https://shipsofscale.com/sosforums/threads/model-airways-fokker-eindecker-completed-build.10142/page-4","JohnR"]
["Plane - Wright Flyer","Wright Flyer - Model Airways - 1:16 [COMPLETED BUILD]","https://shipsofscale.com/sosforums/threads/wright-flyer-model-airways-1-16-completed-build.8858/","https://shipsofscale.com/sosforums/threads/wright-flyer-model-airways-1-16-completed-build.8858/page-2","JohnR",2]
["Guns - Bombarda","Artesania Latina 1:50 Bombarda s.XV Gun Placement Display","https://shipsofscale.com/sosforums/threads/artesania-latina-1-50-bombarda-s-xv-gun-placement-display.8845/","https://shipsofscale.com/sosforums/threads/wright-flyer-model-airways-1-16-completed-build.8858/page-2","Kurt Konrath"]
["Plane - Sopwith Camel","Sopwith Camel F-1, WWI Fighter, 1:16 scale (3/4\" = 1')","https://shipsofscale.com/sosforums/threads/sopwith-camel-f-1-wwi-fighter-1-16-scale-3-4-1.3206/","https://shipsofscale.com/sosforums/threads/sopwith-camel-f-1-wwi-fighter-1-16-scale-3-4-1.3206/page-2","DocBlake",2]
["Ships - Black Pearl","Black Pearl - Metal Earth","https://shipsofscale.com/sosforums/threads/black-pearl-metal-earth.8716/","https://shipsofscale.com/sosforums/threads/sopwith-camel-f-1-wwi-fighter-1-16-scale-3-4-1.3206/page-2","JohnR"]
["Guns - Gatling Gun","Gatling Gun - Metal Earth","https://shipsofscale.com/sosforums/threads/gatling-gun-metal-earth.8670/","https://shipsofscale.com/sosforums/threads/sopwith-camel-f-1-wwi-fighter-1-16-scale-3-4-1.3206/page-2","JohnR"]
["Plane - Aerial Screw","Da Vinci Aerial Screw","https://shipsofscale.com/sosforums/threads/da-vinci-aerial-screw.8577/","https://shipsofscale.com/sosforums/threads/sopwith-camel-f-1-wwi-fighter-1-16-scale-3-4-1.3206/page-2","JohnR"]
["Trailways - Concord Stagecoach","Model Trailways Concord Stagecoach 1:12 Scale","https://shipsofscale.com/sosforums/threads/model-trailways-concord-stagecoach-1-12-scale.2771/","https://shipsofscale.com/sosforums/threads/model-trailways-concord-stagecoach-1-12-scale.2771/page-4","Barry1",4]
["Trailways - Oil Tank Wagon","Phillips 66 Oil Tank Wagon (Model Trailways 1:12) [COMPLETED BUILD]","https://shipsofscale.com/sosforums/threads/phillips-66-oil-tank-wagon-model-trailways-1-12-completed-build.7318/","https://shipsofscale.com/sosforums/threads/model-trailways-concord-stagecoach-1-12-scale.2771/page-4","JohnR"]
["Plane - Clerget Engine","Model Airways - Clerget 9B WW I Rotary Engine - 1:16","https://shipsofscale.com/sosforums/threads/model-airways-clerget-9b-ww-i-rotary-engine-1-16.7074/","https://shipsofscale.com/sosforums/threads/model-trailways-concord-stagecoach-1-12-scale.2771/page-4","JohnR"]
["Guns - Cannon","18th Century Ship's Cannon - Completed","https://shipsofscale.com/sosforums/threads/18th-century-ships-cannon-completed.7022/","https://shipsofscale.com/sosforums/threads/model-trailways-concord-stagecoach-1-12-scale.2771/page-4","JohnR"]
["Trailways - Conestoga Wagon","Model Trailways Conestoga Wagon 1:12 Scale","https://shipsofscale.com/sosforums/threads/model-trailways-conestoga-wagon-1-12-scale.2961/","https://shipsofscale.com/sosforums/threads/model-trailways-conestoga-wagon-1-12-scale.2961/page-2","Barry1",2]
["Trailways - Concord Stagecoach","Model Trailways Concord Stagecoach 1:12 scale","https://shipsofscale.com/sosforums/threads/model-trailways-concord-stagecoach-1-12-scale.1202/","https://shipsofscale.com/sosforums/threads/model-trailways-concord-stagecoach-1-12-scale.1202/page-2","DenisR",2]
["Trailways - Wells Fargo Stagecoach","Build Log: Wells Fargo Stagecoach 1/12","https://shipsofscale.com/sosforums/threads/build-log-wells-fargo-stagecoach-1-12.1536/","https://shipsofscale.com/sosforums/threads/build-log-wells-fargo-stagecoach-1-12.1536/page-2","grayson72",2]
["Trailways - Bus","B-Type Bus OCCRE 1/24 scale","https://shipsofscale.com/sosforums/threads/b-type-bus-occre-1-24-scale.1714/","https://shipsofscale.com/sosforums/threads/b-type-bus-occre-1-24-scale.1714/page-2","Aginvicta",2]

{"sheet":"Sheet3","index":4,"n_rows":88,"n_cols":7,"rows_kept":88,"cut":false,"hidden":false,"merged":[]}
[{"$f":"\"A\"&ROW(A16)+1","v":"A17"},3]
[{"$f":"CELL(\"Address\",G5)","v":"$G$5"}]
[{"$f":"ROW(B16)+1","v":17}]
[88]
[1,null,null,null,null,null,{"$f":"A5","v":1}]
[{"$f":"\"$A$\"&$A$3&\":$G$\"&$A$4","v":"$A$17:$G$88"}]
[{"$f":"\"$B$\"&$A$3&\":$G$\"&$A$4","v":"$B$17:$G$88"},{"$f":"\"=VLOOKUP(B12,Sheet3!\"&A7&\",6,false)\"","v":"=VLOOKUP(B12,Sheet3!$B$17:$G$88,6,false)"}]
[{"$f":"\"$B$\"&$A$3&\":$C$\"&$A$4","v":"$B$17:$C$88"}]
[1557]
[{"$f":"\"$A1\"&\":$A\"&A9","v":"$A1:$A1557"}]
[]
[]
[]
[]
["Subject:"]
[{"$f":"Index!A20","v":"Model type & name"},"Title","Topic","Latest","By","Page",{"$f":"A16","v":"Model type & name"}]
["Ca r - Corvette","Chevrolet Corvette 2022 Stingray Coupe","https://shipsofscale.com/sosforums/threads/chevrolet-corvette-2022-stingray-coupe.17545/","https://shipsofscale.com/sosforums/threads/chevrolet-corvette-2022-stingray-coupe.17545/page-2","Donnie",2,{"$f":"A17","v":"Ca r - Corvette"}]
["Car -  Ryan Blaney","Another NASCAR","https://shipsofscale.com/sosforums/threads/another-nascar.17802/","https://shipsofscale.com/sosforums/threads/marvels-hydra-coupe-1-12-scale-full-scratch-build.14926/page-17","Donnie",null,{"$f":"A18","v":"Car -  Ryan Blaney"}]
["Car - Alpha Romeo","1/12 scale Alfa Romeo 8c 2300 roadster build log [COMPLETED BUILD]","https://shipsofscale.com/sosforums/threads/1-12-scale-alfa-romeo-8c-2300-roadster-build-log-completed-build.10977/","https://shipsofscale.com/sosforums/threads/1-12-scale-alfa-romeo-8c-2300-roadster-build-log-completed-build.10977/page-10","François",10,{"$f":"A19","v":"Car - Alpha Romeo"}]
["Car - Alpha Romeo","Alpha Romeo 8C 2300 Monza - Italeri [COMPLETED BUILD]","https://shipsofscale.com/sosforums/threads/alpha-romeo-8c-2300-monza-italeri-completed-build.10453/","https://shipsofscale.com/sosforums/threads/alpha-romeo-8c-2300-monza-italeri-completed-build.10453/page-4","Donnie",4,{"$f":"A20","v":"Car - Alpha Romeo"}]
["Car - Bentley","1930 Bentley Blower by Aifix 1/12 build log [COMPLETED BUILD]","https://shipsofscale.com/sosforums/threads/1930-bentley-blower-by-aifix-1-12-build-log-completed-build.10782/","https://shipsofscale.com/sosforums/threads/1930-bentley-blower-by-aifix-1-12-build-log-completed-build.10782/page-21","François",21,{"$f":"A21","v":"Car - Bentley"}]
["Car - Bentley","Airfix 1/12, 1930 Bentley Blower build log","https://shipsofscale.com/sosforums/threads/airfix-1-12-1930-bentley-blower-build-log.10782/","https://shipsofscale.com/sosforums/threads/airfix-1-12-1930-bentley-blower-build-log.10782/page-11","François",11,{"$f":"A22","v":"Car - Bentley"}]
["Car - Brabham","Brabham BT44B Martini 1975 by Tamiya 1/12th scale","https://shipsofscale.com/sosforums/threads/brabham-bt44b-martini-1975-by-tamiya-1-12th-scale.11257/","https://shipsofscale.com/sosforums/threads/brabham-bt44b-martini-1975-by-tamiya-1-12th-scale.11257/page-2","Dean62",2,{"$f":"A23","v":"Car - Brabham"}]
["Car - Brabham BT44","1/12 Brabham BT45","https://shipsofscale.com/sosforums/threads/1-12-brabham-bt45.17134/","https://shipsofscale.com/sosforums/threads/guillows-p-38-lightning.15329/page-19","TRS7139",null,{"$f":"A24","v":"Car - Brabham BT44"}]
["Car - Bugatti Type 35B","Bugatti Type 35B [COMPLETED BUILD]","https://shipsofscale.com/sosforums/threads/bugatti-type-35b-completed-build.14981/","https://shipsofscale.com/sosforums/threads/bugatti-type-35b-completed-build.14981/page-4","Donnie",4,{"$f":"A25","v":"Car - Bugatti Type 35B"}]
["Car - Corvette","Revell 68 Corvette 1/25 scale","https://shipsofscale.com/sosforums/threads/revell-68-corvette-1-25-scale.17747/","https://shipsofscale.com/sosforums/threads/revell-68-corvette-1-25-scale.17747/page-2","Dean62",2,{"$f":"A26","v":"Car - Corvette"}]
["Car - Ferrari 166 Barchetta 1/17","Ferrari 166 Barchetta 1/18","https://shipsofscale.com/sosforums/threads/ferrari-166-barchetta-1-18.17152/","https://shipsofscale.com/sosforums/threads/du-doch-nicht-eduard-1-72-scale-completed-build.12266/page-9","TRS7139",null,{"$f":"A27","v":"Car - Ferrari 166 Barchetta 1/17"}]
["Car - Ferrari GTO","1/24 Ferrari GTO 1964","https://shipsofscale.com/sosforums/threads/1-24-ferrari-gto-1964.17133/","https://shipsofscale.com/sosforums/threads/guillows-p-38-lightning.15329/page-19","TRS7139",null,{"$f":"A28","v":"Car - Ferrari GTO"}]
["Car - Ferrari GTO","1/43 Ferrari GTO","https://shipsofscale.com/sosforums/threads/1-43-ferrari-gto.17135/","https://shipsofscale.com/sosforums/threads/guillows-p-38-lightning.15329/page-19","TRS7139",null,{"$f":"A29","v":"Car - Ferrari GTO"}]
["Car - Hydra coupe","Marvel's Hydra Coupe 1/12 scale full scratch build","https://shipsofscale.com/sosforums/threads/marvels-hydra-coupe-1-12-scale-full-scratch-build.14926/","https://shipsofscale.com/sosforums/threads/marvels-hydra-coupe-1-12-scale-full-scratch-build.14926/page-17","François",17,{"$f":"A30","v":"Car - Hydra coupe"}]
["Car-  Keselowski #9","NASCAR: Keselowski #9 car Build","https://shipsofscale.com/sosforums/threads/nascar-keselowski-9-car-build.17509/","https://shipsofscale.com/sosforums/threads/chevrolet-corvette-2022-stingray-coupe.17545/page-2","Donnie",null,{"$f":"A31","v":"Car-  Keselowski #9"}]
["Car - Lotus","Pocher 1:8 scale Lotus 72 [COMPLETED BUILD]","https://shipsofscale.com/sosforums/threads/pocher-1-8-scale-lotus-72-completed-build.11917/","https://shipsofscale.com/sosforums/threads/pocher-1-8-scale-lotus-72-completed-build.11917/page-16","Dean62",16,{"$f":"A32","v":"Car - Lotus"}]
["Car - Lotus Renault","Ayrton Senna’s Lotus Renault 97T 1:8 Scale Metal","https://shipsofscale.com/sosforums/threads/ayrton-senna%E2%80%99s-lotus-renault-97t-1-8-scale-metal.15031/","https://shipsofscale.com/sosforums/threads/ayrton-senna%E2%80%99s-lotus-renault-97t-1-8-scale-metal.15031/page-2","Donnie",2,{"$f":"A33","v":"Car - Lotus Renault"}]
["Car - Porsche 908/2","1/12 Porsche 908/3","https://shipsofscale.com/sosforums/threads/1-12-porsche-908-3.17132/","https://shipsofscale.com/sosforums/threads/guillows-p-38-lightning.15329/page-19","TRS7139",null,{"$f":"A34","v":"Car - Porsche 908/2"}]
["Car - Porsche 917K","Pocher 1:8 scale Porsche 917K","https://shipsofscale.com/sosforums/threads/pocher-1-8-scale-porsche-917k.15666/","https://shipsofscale.com/sosforums/threads/pocher-1-8-scale-porsche-917k.15666/page-10","Dean62",10,{"$f":"A35","v":"Car - Porsche 917K"}]
["Car - Ramchargers1963 Dodge 330 SS","1964 Dodge 330 SS Ramchargers","https://shipsofscale.com/sosforums/threads/1964-dodge-330-ss-ramchargers.15552/","https://shipsofscale.com/sosforums/threads/1964-dodge-330-ss-ramchargers.15552/page-2","Donnie",2,{"$f":"A36","v":"Car - Ramchargers1963 Dodge 330 SS"}]
["Character","Model of classic RuneScape king black dragon - piñata","https://shipsofscale.com/sosforums/threads/model-of-classic-runescape-king-black-dragon-pi%C3%B1ata.17642/","https://shipsofscale.com/sosforums/threads/model-of-classic-runescape-king-black-dragon-pi%C3%B1ata.17642/page-6","DerezzedDragon",6,{"$f":"A37","v":"Character"}]
["Csr - Mercedes 300 SL","Mercedes 300 SL","https://shipsofscale.com/sosforums/threads/mercedes-300-sl.17508/","https://shipsofscale.com/sosforums/threads/chevrolet-corvette-2022-stingray-coupe.17545/page-2","Donnie",null,{"$f":"A38","v":"Csr - Mercedes 300 SL"}]
["Guns - Bombarda","Artesania Latina 1:50 Bombarda s.XV Gun Placement Display","https://shipsofscale.com/sosforums/threads/artesania-latina-1-50-bombarda-s-xv-gun-placement-display.8845/","https://shipsofscale.com/sosforums/threads/wright-flyer-model-airways-1-16-completed-build.8858/page-2","Kurt Konrath"]
["Guns - Cannon","18th Century Ship's Cannon - Completed","https://shipsofscale.com/sosforums/threads/18th-century-ships-cannon-completed.7022/","https://shipsofscale.com/sosforums/threads/model-trailways-concord-stagecoach-1-12-scale.2771/page-4","JohnR"]
["Guns - Cannon","American Coastal Cannon - Mantua - 1:17","https://shipsofscale.com/sosforums/threads/american-coastal-cannon-mantua-1-17.9546/","https://shipsofscale.com/sosforums/threads/model-airways-fokker-eindecker-completed-build.10142/page-4","JohnR"]
["Guns - Cannon","Indonesian brass Lantaka cannon miniature version (fires)","https://shipsofscale.com/sosforums/threads/indonesian-brass-lantaka-cannon-miniature-version-fires.17497/","https://shipsofscale.com/sosforums/threads/chevrolet-corvette-2022-stingray-coupe.17545/page-2","Rawiri",null,{"$f":"A42","v":"Guns - Cannon"}]
["Guns - Cannon","Old Ironsides Replica Cannon","https://shipsofscale.com/sosforums/threads/old-ironsides-replica-cannon.8747/","https://shipsofscale.com/sosforums/threads/model-airways-fokker-eindecker-completed-build.10142/page-4","GAStan"]
["Guns - Gatling Gun","Gatling Gun - Metal Earth","https://shipsofscale.com/sosforums/threads/gatling-gun-metal-earth.8670/","https://shipsofscale.com/sosforums/threads/sopwith-camel-f-1-wwi-fighter-1-16-scale-3-4-1.3206/page-2","JohnR"]
["Guns - Gatling Gun","Historic Artillery Gatling Gun by Model Expo","https://shipsofscale.com/sosforums/threads/historic-artillery-gatling-gun-by-model-expo.11440/","https://shipsofscale.com/sosforums/threads/model-airways-fokker-eindecker-completed-build.10142/page-4","Kurt Konrath",null,{"$f":"A45","v":"Guns - Gatling Gun"}]
["Locomotive - Rocket","Stephenson's Rocket, Early Locomotive - by OcCre - a49kid - Wayne","https://shipsofscale.com/sosforums/threads/stephensons-rocket-early-locomotive-by-occre-a49kid-wayne.14671/","https://shipsofscale.com/sosforums/threads/stagecoach-build-by-artesan%C3%ADa-latina-completed-build.13490/page-5","a49kid",null,{"$f":"A46","v":"Locomotive - Rocket"}]
["Motorcycle","Motorcycle from scratch","https://shipsofscale.com/sosforums/threads/motorcycle-from-scratch.12446/","https://shipsofscale.com/sosforums/threads/brabham-bt44b-martini-1975-by-tamiya-1-12th-scale.11257/page-2","TimV",null,{"$f":"A47","v":"Motorcycle"}]
["Motorcycle - Triumph Tr6","Triumph Tr6, 3d printed large scale","https://shipsofscale.com/sosforums/threads/triumph-tr6-3d-printed-large-scale.17843/","https://shipsofscale.com/sosforums/threads/triumph-tr6-3d-printed-large-scale.17843/page-3","François",3,{"$f":"A48","v":"Motorcycle - Triumph Tr6"}]
["Pl;ane - Oberursel Engine","Oberursel UR III WW I Rotary Engine (Model Airways; 1:16) [COMPLETED BUILD]","https://shipsofscale.com/sosforums/threads/oberursel-ur-iii-ww-i-rotary-engine-model-airways-1-16-completed-build.9708/","https://shipsofscale.com/sosforums/threads/model-airways-fokker-eindecker-completed-build.10142/page-4","JohnR"]
["Plane - Aerial Screw","Da Vinci Aerial Screw","https://shipsofscale.com/sosforums/threads/da-vinci-aerial-screw.8577/","https://shipsofscale.com/sosforums/threads/sopwith-camel-f-1-wwi-fighter-1-16-scale-3-4-1.3206/page-2","JohnR"]
["Plane - Airacobra","1:46 P-400 Airacobra - 67th Fighter Squadron - Guadalcanal (Aug 1942) [COMPLETED BUILD]","https://shipsofscale.com/sosforums/threads/1-46-p-400-airacobra-67th-fighter-squadron-guadalcanal-aug-1942-completed-build.8831/","https://shipsofscale.com/sosforums/threads/model-airways-fokker-eindecker-completed-build.10142/page-4","JohnR",null,{"$f":"A51","v":"Plane - Airacobra"}]
["Plane - Albatros","Model Airways Albatros - D.va 1/16 scale","https://shipsofscale.com/sosforums/threads/model-airways-albatros-d-va-1-16-scale.9745/","https://shipsofscale.com/sosforums/threads/model-airways-albatros-d-va-1-16-scale.9745/page-2","Dean62",2,{"$f":"A52","v":"Plane - Albatros"}]
["Plane - C-47  Dakota","Finished C-47 \"Dakota\"","https://shipsofscale.com/sosforums/threads/finished-c-47-dakota.17010/","https://shipsofscale.com/sosforums/threads/guillows-p-38-lightning.15329/page-19","uncchains",null,{"$f":"A53","v":"Plane - C-47  Dakota"}]
["Plane - Clerget Engine","Model Airways - Clerget 9B WW I Rotary Engine - 1:16","https://shipsofscale.com/sosforums/threads/model-airways-clerget-9b-ww-i-rotary-engine-1-16.7074/","https://shipsofscale.com/sosforums/threads/model-trailways-concord-stagecoach-1-12-scale.2771/page-4","JohnR"]
["Plane - Display case","Display Case for Wright Flyer","https://shipsofscale.com/sosforums/threads/display-case-for-wright-flyer.10620/","https://shipsofscale.com/sosforums/threads/model-airways-fokker-eindecker-completed-build.10142/page-4","JohnR",null,{"$f":"A55","v":"Plane - Display case"}]
["Plane - Du Doch Nicht","Du Doch Nicht!! Eduard 1/72 scale [COMPLETED BUILD]","https://shipsofscale.com/sosforums/threads/du-doch-nicht-eduard-1-72-scale-completed-build.12266/","https://shipsofscale.com/sosforums/threads/du-doch-nicht-eduard-1-72-scale-completed-build.12266/page-9","Dean62",9,{"$f":"A56","v":"Plane - Du Doch Nicht"}]
["Plane - Fantasy","Fantasy Flying Machine 1:30 scale (approx.)","https://shipsofscale.com/sosforums/threads/fantasy-flying-machine-1-30-scale-approx.12239/","https://shipsofscale.com/sosforums/threads/fantasy-flying-machine-1-30-scale-approx.12239/page-2","Carleroo",2,{"$f":"A57","v":"Plane - Fantasy"}]
["Plane - Fokker","Fokker D.VII Rhoden 1:48","https://shipsofscale.com/sosforums/threads/fokker-d-vii-rhoden-1-48.13987/","https://shipsofscale.com/sosforums/threads/1-12-scale-alfa-romeo-8c-2300-roadster-build-log-completed-build.10977/page-10","RDN1954",null,{"$f":"A58","v":"Plane - Fokker"}]
["Plane - Fokker","Model Airways Fokker Eindecker [COMPLETED BUILD]","https://shipsofscale.com/sosforums/threads/model-airways-fokker-eindecker-completed-build.10142/","https://shipsofscale.com/sosforums/threads/model-airways-fokker-eindecker-completed-build.10142/page-4","François",4,{"$f":"A59","v":"Plane - Fokker"}]
["Plane - Fokker Spin III","Fokker Spin III, scale 1:48, scratch build [COMPLETED BUILD]","https://shipsofscale.com/sosforums/threads/fokker-spin-iii-scale-1-48-scratch-build-completed-build.13988/","https://shipsofscale.com/sosforums/threads/fokker-spin-iii-scale-1-48-scratch-build-completed-build.13988/page-15","RDN1954",15,{"$f":"A60","v":"Plane - Fokker Spin III"}]
["Plane - MB 339 A","1/72 Italeri MB 339 A during Falklands War 1982","https://shipsofscale.com/sosforums/threads/1-72-italeri-mb-339-a-during-falklands-war-1982.10033/","https://shipsofscale.com/sosforums/threads/model-airways-fokker-eindecker-completed-build.10142/page-4","SigEp Ziggy",null,{"$f":"A61","v":"Plane - MB 339 A"}]
["Plane - Mercede Engine","Mercedes WW I Aero Engine (Model Airways - 1:16) [COMPLETED BUILD]","https://shipsofscale.com/sosforums/threads/mercedes-ww-i-aero-engine-model-airways-1-16-completed-build.10824/","https://shipsofscale.com/sosforums/threads/brabham-bt44b-martini-1975-by-tamiya-1-12th-scale.11257/page-2","JohnR",null,{"$f":"A62","v":"Plane - Mercede Engine"}]
["Plane - NHI H-3","NHI Kolibri N-3, scale 1:48, scratch build","https://shipsofscale.com/sosforums/threads/nhi-kolibri-n-3-scale-1-48-scratch-build.15209/","https://shipsofscale.com/sosforums/threads/nhi-kolibri-n-3-scale-1-48-scratch-build.15209/page-19","RDN1954",19,{"$f":"A63","v":"Plane - NHI H-3"}]
["Plane - Oro Jackson","Airfix SEPECAT JAGUAR GR1 1/48 by Smithy","https://shipsofscale.com/sosforums/threads/airfix-sepecat-jaguar-gr1-1-48-by-smithy.18048/","https://shipsofscale.com/sosforums/threads/airfix-sepecat-jaguar-gr1-1-48-by-smithy.18048/page-3","Smithy",3,{"$f":"A64","v":"Plane - Oro Jackson"}]
["Plane - P-38 Lightning","Guillows P-38 Lightning","https://shipsofscale.com/sosforums/threads/guillows-p-38-lightning.15329/","https://shipsofscale.com/sosforums/threads/guillows-p-38-lightning.15329/page-19","Dean62",19,{"$f":"A65","v":"Plane - P-38 Lightning"}]
["Plane - Sopwith Camel","Model Airways Sopwith Camel [COMPLETED BUILD]","https://shipsofscale.com/sosforums/threads/model-airways-sopwith-camel-completed-build.9931/","https://shipsofscale.com/sosforums/threads/model-airways-sopwith-camel-completed-build.9931/page-6","Donnie",6,{"$f":"A66","v":"Plane - Sopwith Camel"}]
["Plane - Sopwith Camel","Model Airways Sopwith Camel 1/16 scale [COMPLETED BUILD]","https://shipsofscale.com/sosforums/threads/model-airways-sopwith-camel-1-16-scale-completed-build.9260/","https://shipsofscale.com/sosforums/threads/model-airways-sopwith-camel-1-16-scale-completed-build.9260/page-27","Dean62",27,{"$f":"A67","v":"Plane - Sopwith Camel"}]
["Plane - Sopwith Camel","Sopwith Camel & Fokker Triplane.","https://shipsofscale.com/sosforums/threads/sopwith-camel-fokker-triplane.17661/","https://shipsofscale.com/sosforums/threads/chevrolet-corvette-2022-stingray-coupe.17545/page-2","Hornet",null,{"$f":"A68","v":"Plane - Sopwith Camel"}]
["Plane - Sopwith Camel","Sopwith Camel F-1, WWI Fighter, 1:16 scale (3/4\" = 1')","https://shipsofscale.com/sosforums/threads/sopwith-camel-f-1-wwi-fighter-1-16-scale-3-4-1.3206/","https://shipsofscale.com/sosforums/threads/sopwith-camel-f-1-wwi-fighter-1-16-scale-3-4-1.3206/page-2","DocBlake",2]
["Plane - Wright Flier","Wright Brothers \"Flyer\" 1903","https://shipsofscale.com/sosforums/threads/wright-brothers-flyer-1903.15124/","https://shipsofscale.com/sosforums/threads/wright-brothers-flyer-1903.15124/page-15","Daniel20",15,{"$f":"A70","v":"Plane - Wright Flier"}]
["Plane - Wright Flyer","Model Airways-The Wright Flyer-Scale 1/16","https://shipsofscale.com/sosforums/threads/model-airways-the-wright-flyer-scale-1-16.3075/","https://shipsofscale.com/sosforums/threads/model-airways-the-wright-flyer-scale-1-16.3075/page-4","Barry1",4,{"$f":"A71","v":"Plane - Wright Flyer"}]
["Plane - Wright Flyer","Wright Flyer - Model Airways - 1:16 [COMPLETED BUILD]","https://shipsofscale.com/sosforums/threads/wright-flyer-model-airways-1-16-completed-build.8858/","https://shipsofscale.com/sosforums/threads/wright-flyer-model-airways-1-16-completed-build.8858/page-2","JohnR",2]
["Planes - 1/72","My 1/72 scale aircraft","https://shipsofscale.com/sosforums/threads/my-1-72-scale-aircraft.17224/","https://shipsofscale.com/sosforums/threads/my-1-72-scale-aircraft.17224/page-24","Dean62",24,{"$f":"A73","v":"Planes - 1/72"}]
["Planes - Various","My plane builds since 2008","https://shipsofscale.com/sosforums/threads/my-plane-builds-since-2008.17801/","https://shipsofscale.com/sosforums/threads/nhi-kolibri-n-3-scale-1-48-scratch-build.15209/page-19","kg4kpg",null,{"$f":"A74","v":"Planes - Various"}]
["Ships - Black Pearl","Black Pearl - Metal Earth","https://shipsofscale.com/sosforums/threads/black-pearl-metal-earth.8716/","https://shipsofscale.com/sosforums/threads/sopwith-camel-f-1-wwi-fighter-1-16-scale-3-4-1.3206/page-2","JohnR"]
["Smithy\nAvro Anson Mk.1 - Plastic by Airfix in 1/48 Scale - Build by Smithy\nSmithy Mar 14, 2025 2\nReplies38\nViews713\n46 minutes ago\nColonelKrypton\nFrançois\nMarvel's Hydra Coupe 1/12 scale full scratch build\nFrançois Jul 24, 2024 2 3 4 5 6 7 8\nReplies145\nViews4,506\nYesterday at 8:09 AM\nrshousha\nrshousha\nRDN1954\nNHI Kolibri N-3, scale 1:48, scratch build\nRDN1954 Aug 30, 2024 2 3 4 5 6 7 8 9 10 11\nReplies203\nViews5,185\nMonday at 9:44 PM\nPathfinder65\nPathfinder65\nDean62\nPocher 1:8 scale Porsche 917K\nDean62 Nov 7, 2024 2 3 4 5 6 7 8 9\nReplies177\nViews4,508\nSunday at 12:47 PM\nDean62\nDean62\nDean62\nGuillows P-38 Lightning\nDean62 Sep 17, 2024 8 9 10 11 12 13 14 15 16 17\nReplies327\nViews10,789\nMar 22, 2025\nJohannes\nDonnie\nBugatti Type 35B [COMPLETED BUILD]\nDonnie Jul 31, 2024 2 3 4\nReplies61\nViews2,366\nMar 1, 2025\ncdnfurball\ncdnfurball","Avro Anson Mk.1 - Plastic by Airfix in 1/48 Scale - Build by Smithy","https://shipsofscale.com/sosforums/threads/avro-anson-mk-1-plastic-by-airfix-in-1-48-scale-build-by-smithy.16529/","https://shipsofscale.com/sosforums/threads/avro-anson-mk-1-plastic-by-airfix-in-1-48-scale-build-by-smithy.16529/page-8","Smithy",8,{"$f":"A76","v":"Smithy\nAvro Anson Mk.1 - Plastic by Airfix in 1/48 Scale - Build by Smithy\nSmithy Mar 14, 2025 2\nReplies38\nViews713\n46 minutes ago\nColonelKrypton\nFrançois\nMarvel's Hydra Coupe 1/12 scale full scratch build\nFrançois Jul 24, 2024 2 3 4 5 6 7 8\nReplies145\nViews4,506\nYesterday at 8:09 AM\nrshousha\nrshousha\nRDN1954\nNHI Kolibri N-3, scale 1:48, scratch build\nRDN1954 Aug 30, 2024 2 3 4 5 6 7 8 9 10 11\nReplies203\nViews5,185\nMonday at 9:44 PM\nPathfinder65\nPathfinder65\nDean62\nPocher 1:8 scale Porsche 917K\nDean62 Nov 7, 2024 2 3 4 5 6 7 8 9\nReplies177\nViews4,508\nSunday at 12:47 PM\nDean62\nDean62\nDean62\nGuillows P-38 Lightning\nDean62 Sep 17, 2024 8 9 10 11 12 13 14 15 16 17\nReplies327\nViews10,789\nMar 22, 2025\nJohannes\nDonnie\nBugatti Type 35B [COMPLETED BUILD]\nDonnie Jul 31, 2024 2 3 4\nReplies61\nViews2,366\nMar 1, 2025\ncdnfurball\ncdnfurball"}]
["Trailways - Bus","B-Type Bus OCCRE 1/24 scale","https://shipsofscale.com/sosforums/threads/b-type-bus-occre-1-24-scale.1714/","https://shipsofscale.com/sosforums/threads/b-type-bus-occre-1-24-scale.1714/page-2","Aginvicta",2]
["Trailways - Coffee Wagon","Guns of History - United States Christian Commission Civil War Coffee Wagon - Model Shipways - Build Log NCC (Navy-Curtis Craft) - Scale 1:16","https://shipsofscale.com/sosforums/threads/guns-of-history-united-states-christian-commission-civil-war-coffee-wagon-model-shipways-build-log-ncc-navy-curtis-craft-scale-1-16.12496/","https://shipsofscale.com/sosforums/threads/brabham-bt44b-martini-1975-by-tamiya-1-12th-scale.11257/page-2","BMT",null,{"$f":"A78","v":"Trailways - Coffee Wagon"}]
["Trailways - Concord Stagecoach","Model Trailways Concord Stagecoach 1:12 Scale","https://shipsofscale.com/sosforums/threads/model-trailways-concord-stagecoach-1-12-scale.2771/","https://shipsofscale.com/sosforums/threads/model-trailways-concord-stagecoach-1-12-scale.2771/page-4","Barry1",4]
["Trailways - Concord Stagecoach","Model Trailways Concord Stagecoach 1:12 scale","https://shipsofscale.com/sosforums/threads/model-trailways-concord-stagecoach-1-12-scale.1202/","https://shipsofscale.com/sosforums/threads/model-trailways-concord-stagecoach-1-12-scale.1202/page-2","DenisR",2]
["Trailways - Concord Stagecoach","Trailways - Concord Stagecoach","https://shipsofscale.com/sosforums/threads/model-trailways-1-2-scale-concord-stagecoach.17146/","https://shipsofscale.com/sosforums/threads/guillows-p-38-lightning.15329/page-19","Lance",null,{"$f":"A81","v":"Trailways - Concord Stagecoach"}]
["Trailways - Conestoga Wagon","Model Trailways Conestoga Wagon 1:12 Scale","https://shipsofscale.com/sosforums/threads/model-trailways-conestoga-wagon-1-12-scale.2961/","https://shipsofscale.com/sosforums/threads/model-trailways-conestoga-wagon-1-12-scale.2961/page-2","Barry1",2]
["Trailways - Medicine Wagon","Medicine Wagon","https://shipsofscale.com/sosforums/threads/medicine-wagon.15131/","https://shipsofscale.com/sosforums/threads/1964-dodge-330-ss-ramchargers.15552/page-2","Gravman",null,{"$f":"A83","v":"Trailways - Medicine Wagon"}]
["Trailways - Oil Tank Wagon","Phillips 66 Oil Tank Wagon (Model Trailways 1:12) [COMPLETED BUILD]","https://shipsofscale.com/sosforums/threads/phillips-66-oil-tank-wagon-model-trailways-1-12-completed-build.7318/","https://shipsofscale.com/sosforums/threads/model-trailways-concord-stagecoach-1-12-scale.2771/page-4","JohnR"]
["Trailways - Stagecoach","Amati victory model stagecoach 1:10","https://shipsofscale.com/sosforums/threads/amati-victory-model-stagecoach-1-10.10177/","https://shipsofscale.com/sosforums/threads/model-airways-sopwith-camel-1-16-scale-completed-build.9260/page-27","sideliner",null,{"$f":"A85","v":"Trailways - Stagecoach"}]
["Trailways - Stagecoach","Stagecoach Build - By Artesanía Latina [COMPLETED BUILD]","https://shipsofscale.com/sosforums/threads/stagecoach-build-by-artesan%C3%ADa-latina-completed-build.13490/","https://shipsofscale.com/sosforums/threads/stagecoach-build-by-artesan%C3%ADa-latina-completed-build.13490/page-5","STGCS",5,{"$f":"A86","v":"Trailways - Stagecoach"}]
["Trailways - Steam Pumper","1869 Allerton Steam Pumper Model [COMPLETED BUILD]","https://shipsofscale.com/sosforums/threads/1869-allerton-steam-pumper-model-completed-build.8176/","https://shipsofscale.com/sosforums/threads/model-airways-fokker-eindecker-completed-build.10142/page-4","Bluebeard"]
["Trailways - Wells Fargo Stagecoach","Build Log: Wells Fargo Stagecoach 1/12","https://shipsofscale.com/sosforums/threads/build-log-wells-fargo-stagecoach-1-12.1536/","https://shipsofscale.com/sosforums/threads/build-log-wells-fargo-stagecoach-1-12.1536/page-2","grayson72",2]

{"sheet":"Index","index":5,"n_rows":157,"n_cols":20,"rows_kept":157,"cut":false,"hidden":false,"merged":[]}
[{"$f":"\"A\" & ROW(A21)+1","v":"A22"},6,{"$f":"TEXT(NOW(),\"dd/mm/yy\")","v":"22/11/25"},"<head><meta charset=\"utf-8\" /></head>",null,null,"Edit these entries to change the formatting ---->","<td width=\"","<span style=\"text-decoration: underline;\">","<strong>","<em>","<tr>","<u>","<td>","<a href=\"","\">","<table width=\"","<tbody>","<p>","<div style=\"text-align: center;\">"]
[{"$f":"CELL(\"address\",A20)","v":"$A$20"},null,null,null,null,null,null,"%\">","</span>","</strong>","</em>","</tr>","</u>","</td>","</a>",null,"%\" border=\"0\">","</tbody>","&#160;","<div style=\"text-align: left;\">"]
[{"$f":"ROW(A21)+1","v":22},"Start Row",null,null,null,null,"See range stating at V1 for previous values",null,"<hr />","#TOP\">Back to Top","<a name=\"",null,null,null,null,null,"</table>",null,"</p>","</div>"]
[156,"End Row",null,null,null,null,{"$f":"$D$1& $B$8&$C$8","v":"<head><meta charset=\"utf-8\" /></head><div style=\"text-align: center;\"><strong>This is a list of all the build logs in the Historical forum - 22/11/25</strong></div><div style=\"text-align: center;\"></div><div style=\"text-align: center;\">The logs are in alphabetical order of the ships name (Ignoring any prefix, e.g. HMS, USS etc.)</div><div style=\"text-align: center;\">Select a letter from the list below to jump within the index.</div><hr /><div style=\"text-align: center;\"></div><div style=\"text-align: center;\">A&#160;&#160;B&#160;&#160;<a href=\"#C\">C</a>&#160;&#160;D&#160;&#160;E&#160;&#160;F&#160;&#160;<a href=\"#G\">G</a>&#160;&#160;H&#160;&#160;I&#160;&#160;J&#160;&#160;K&#160;&#160;<a href=\"#L\">L</a>&#160;&#160;<a href=\"#M\">M</a>&#160;&#160;N&#160;&#160;O&#160;&#160;<a href=\"#P\">P</a>&#160;&#160;Q&#160;&#160;R&#160;&#160;<a href=\"#S\">S</a>&#160;&#160;<a href=\"#T\">T</a>&#160;&#160;U&#160;&#160;V&#160;&#160;W&#160;&#160;X&#160;&#160;Y&#160;&#160;Z&#160;&#160;</div>"},"",null,null,null,null,null,null,null,null,null,null,{"$f":"S1&S2&S3","v":"<p>&#160;</p>"}]
[{"$f":"CELL(\"address\",$G$5)&\":\"&CELL(\"address\",$M$5)","v":"$G$5:$M$5"},{"$f":"B14&Start!D12& \" forum\"","v":"This is a list of all the build logs in the Historical forum"},null,null,null,null,{"$f":"H5&I5&J5&L5","v":"<tr><td><strong>$G$5:$M$5</strong></td><td></td><td><a href=\"\">This is a list of all the build logs in the Historical forum</a></td><td></td></tr>"},{"$f":"$L$1&$N$1&$J$1&A5&$J$2&$N$2","v":"<tr><td><strong>$G$5:$M$5</strong></td>"},{"$f":"$N$1&E5&$N$2","v":"<td></td>"},{"$f":"$N$1&$O$1&C5&$P$1&B5&$O$2&$N$2","v":"<td><a href=\"\">This is a list of all the build logs in the Historical forum</a></td>"},{"$f":"F5","v":0},{"$f":"$N$1&IF(K5>0,$O$1&D5&$P$1&\"Page \"&K5&$O$2,\"\")&$N$2&$L$2","v":"<td></td></tr>"},""]
[{"$f":"CELL(\"address\",G4)","v":"$G$4"},null,null,null,null,null,"heading 1","heading 2","heading 3","heading 4"]
[{"$f":"CELL(\"address\",G21)","v":"$G$21"},"Opening text","A-Z bar","Table setup",null,"Headings: ",{"$f":"$H$1&M16&$H$2&$I$1&$J$1&$A$20&$J$2&$I$2&$N$2","v":"<td width=\"20%\"><span style=\"text-decoration: underline;\"><strong>Model type & name</strong></span></td>"},{"$f":"$H$1&N16&$H$2&$I$1&$J$1&$E$20&$J$2&$I$2&$N$2","v":"<td width=\"12%\"><span style=\"text-decoration: underline;\"><strong>By</strong></span></td>"},{"$f":"$H$1&O16&$H$2&$I$1&$J$1&$B$20&$J$2&$I$2&$N$2","v":"<td width=\"62%\"><span style=\"text-decoration: underline;\"><strong>Topic</strong></span></td>"},{"$f":"$H$1&P16&$H$2&$I$1&$J$1&$D$20&$J$2&$I$2&$N$2","v":"<td width=\"6%\"><span style=\"text-decoration: underline;\"><strong>Latest</strong></span></td>"}]
[{"$f":"CELL(\"address\",G10)","v":"$G$10"},{"$f":"$T$1&$J$1&IF(B5<>\"\",B5&\" - \"&$C$1,\"\")&$J$2&$T$3     &$T$1&IF(C14<>\"\",C14,\"\")&$T$3    &$T$1&IF(D14<>\"\",D14,\"\")&$T$3   &$T$1&IF(E14<>\"\",E14,\"\")&$T$3 &$I$3& T1&T3","v":"<div style=\"text-align: center;\"><strong>This is a list of all the build logs in the Historical forum - 22/11/25</strong></div><div style=\"text-align: center;\"></div><div style=\"text-align: center;\">The logs are in alphabetical order of the ships name (Ignoring any prefix, e.g. HMS, USS etc.)</div><div style=\"text-align: center;\">Select a letter from the list below to jump within the index.</div><hr /><div style=\"text-align: center;\"></div>"},"<div style=\"text-align: center;\">A&#160;&#160;B&#160;&#160;<a href=\"#C\">C</a>&#160;&#160;D&#160;&#160;E&#160;&#160;F&#160;&#160;<a href=\"#G\">G</a>&#160;&#160;H&#160;&#160;I&#160;&#160;J&#160;&#160;K&#160;&#160;<a href=\"#L\">L</a>&#160;&#160;<a href=\"#M\">M</a>&#160;&#160;N&#160;&#160;O&#160;&#160;<a href=\"#P\">P</a>&#160;&#160;Q&#160;&#160;R&#160;&#160;<a href=\"#S\">S</a>&#160;&#160;<a href=\"#T\">T</a>&#160;&#160;U&#160;&#160;V&#160;&#160;W&#160;&#160;X&#160;&#160;Y&#160;&#160;Z&#160;&#160;</div>",{"$f":"$L$10&$R$1&$L$1&$G$7&$H$7&$I$7&$J$7","v":"<table width=\"100%\" border=\"0\"><tbody><tr><td width=\"20%\"><span style=\"text-decoration: underline;\"><strong>Model type & name</strong></span></td><td width=\"12%\"><span style=\"text-decoration: underline;\"><strong>By</strong></span></td><td width=\"62%\"><span style=\"text-decoration: underline;\"><strong>Topic</strong></span></td><td width=\"6%\"><span style=\"text-decoration: underline;\"><strong>Latest</strong></span></td>"},"First row",null,{"$f":"IF(INDIRECT($A$1)<>\" \",$L$1&$N$1&\"&#160;\"&$N$2&$L$2,\"\")","v":""}]
[null,null,null,null,null,"Divide table: ",{"$f":"$I$3&$S$1&O$1 &$J$3&$O$2&$S$3","v":"<hr /><p><a href=\"#TOP\">Back to Top</a></p>"},{"$f":"$T$2&$I$3&$K$3","v":"<div style=\"text-align: left;\"><hr /><a name=\""},{"$f":"$P$1&$O$2&$J$1","v":"\"></a><strong>"},{"$f":"$J$2&T3","v":"</strong></div>"},null,"<p><u><a name=\"A\"></a><strong>A</strong></u></p><table width=\"100%\" border=\"0\"><tbody><tr><td width=\"40%\"><span style=\"text-decoration: underline;\"><strong>Subject</strong></span></td><td width=\"40%\"><span style=\"text-decoration: underline;\"><strong>Document</strong></span></td><td width=\"20%\"><span style=\"text-decoration: underline;\"><strong>Page</strong></span></td></u></tr>",""]
[{"$f":"A20","v":"Model type & name"},{"$f":"G9&IF(B18<>\"\",$I$3&$S$1&B18&$S$3&$S$1&IF(C18<>\"\",C18,$S$2)&$S$3&IF(D18<>\"\",$S$1&D18&$S$3,IF(E18<>\"\",$S$4,IF(C18<>\"\",$S$4,\"\")))&IF(E18<>\"\",$S$1&E18&$S$3&$S$4,IF(D18<>\"\",$S$4,\"\")),\"\")","v":"<hr /><p><a href=\"#TOP\">Back to Top</a></p><hr /><p>If you have any comments or require any corrections or amendments to this index, please post them <a href=\"http://www.modelshipbuilder.com/e107_plugins/forum/forum_viewtopic.php?9057\">here</a></p><p>&#160;</p>"},"",null,null,null,{"$f":"$R$2&$Q$3&IF($B$10<>\"\",$S$4&$B$10,\"\")","v":"</tbody></table><p>&#160;</p><hr /><p><a href=\"#TOP\">Back to Top</a></p><hr /><p>If you have any comments or require any corrections or amendments to this index, please post them <a href=\"http://www.modelshipbuilder.com/e107_plugins/forum/forum_viewtopic.php?9057\">here</a></p><p>&#160;</p>"},"",null,null,null,{"$f":"Q1&M13&Q2","v":"<table width=\"100%\" border=\"0\">"}]
[]
[null,"Opening Text"]
[null,"Line 1","Line 2","Line 3","Line 4",null,"Edit this entry to change the overall table width",null,null,null,null,null,100]
[null,"This is a list of all the build logs in the ",null,"The logs are in alphabetical order of the ships name (Ignoring any prefix, e.g. HMS, USS etc.)","Select a letter from the list below to jump within the index."]
[null,null,null,null,null,null,null,null,null,null,null,null,"Col. 1","Col. 2","Col. 3","Col. 4"]
[null,"Closing Text",null,null,null,null,"Edit these entries to change the column widths",null,null,null,null,null,20,12,62,{"$f":"MAX(100-SUM(M16:O16),0)","v":6}]
[null,"Line 1","Line 2","Line 3","Line 4"]
[null,"If you have any comments or require any corrections or amendments to this index, please post them <a href=\"http://www.modelshipbuilder.com/e107_plugins/forum/forum_viewtopic.php?9057\">here</a>"]
[null,null,null,null,null,null,null,null,null,"topic +"]
["Model type & name","Topic","Topic Link","Latest","By","Page","HTML Index Text","ship","by","link","Page","Page + link"]
[null,null,null,null,null,null,{"$f":"$D$1& $B$8&$C$8","v":"<head><meta charset=\"utf-8\" /></head><div style=\"text-align: center;\"><strong>This is a list of all the build logs in the Historical forum - 22/11/25</strong></div><div style=\"text-align: center;\"></div><div style=\"text-align: center;\">The logs are in alphabetical order of the ships name (Ignoring any prefix, e.g. HMS, USS etc.)</div><div style=\"text-align: center;\">Select a letter from the list below to jump within the index.</div><hr /><div style=\"text-align: center;\"></div><div style=\"text-align: center;\">A&#160;&#160;B&#160;&#160;<a href=\"#C\">C</a>&#160;&#160;D&#160;&#160;E&#160;&#160;F&#160;&#160;<a href=\"#G\">G</a>&#160;&#160;H&#160;&#160;I&#160;&#160;J&#160;&#160;K&#160;&#160;<a href=\"#L\">L</a>&#160;&#160;<a href=\"#M\">M</a>&#160;&#160;N&#160;&#160;O&#160;&#160;<a href=\"#P\">P</a>&#160;&#160;Q&#160;&#160;R&#160;&#160;<a href=\"#S\">S</a>&#160;&#160;<a href=\"#T\">T</a>&#160;&#160;U&#160;&#160;V&#160;&#160;W&#160;&#160;X&#160;&#160;Y&#160;&#160;Z&#160;&#160;</div>"}]
[" ",null,null,null,null,null,"<div style=\"text-align: left;\"><hr /><a name=\"C\"></a><strong>C</strong></div><table width=\"100%\" border=\"0\"><tbody><tr><td width=\"20%\"><span style=\"text-decoration: underline;\"><strong>Model type & name</strong></span></td><td width=\"12%\"><span style=\"text-decoration: underline;\"><strong>By</strong></span></td><td width=\"62%\"><span style=\"text-decoration: underline;\"><strong>Topic</strong></span></td><td width=\"6%\"><span style=\"text-decoration: underline;\"><strong>Latest</strong></span></td>",null,null,null,null,null,""]
["Ca r - Corvette","Chevrolet Corvette 2022 Stingray Coupe","https://shipsofscale.com/sosforums/threads/chevrolet-corvette-2022-stingray-coupe.17545/","https://shipsofscale.com/sosforums/threads/chevrolet-corvette-2022-stingray-coupe.17545/page-2","Donnie",2,{"$f":"H23&I23&J23&L23","v":"<tr><td><strong>Ca r - Corvette</strong></td><td>Donnie</td><td><a href=\"https://shipsofscale.com/sosforums/threads/chevrolet-corvette-2022-stingray-coupe.17545/\">Chevrolet Corvette 2022 Stingray Coupe</a></td><td><a href=\"https://shipsofscale.com/sosforums/threads/chevrolet-corvette-2022-stingray-coupe.17545/page-2\">Page 2</a></td></tr>"},{"$f":"$L$1&$N$1&$J$1&A23&$J$2&$N$2","v":"<tr><td><strong>Ca r - Corvette</strong></td>"},{"$f":"$N$1&E23&$N$2","v":"<td>Donnie</td>"},{"$f":"$N$1&$O$1&C23&$P$1&B23&$O$2&$N$2","v":"<td><a href=\"https://shipsofscale.com/sosforums/threads/chevrolet-corvette-2022-stingray-coupe.17545/\">Chevrolet Corvette 2022 Stingray Coupe</a></td>"},{"$f":"F23","v":2},{"$f":"$N$1&IF(K23>0,$O$1&D23&$P$1&\"Page \"&K23&$O$2,\"\")&$N$2&$L$2","v":"<td><a href=\"https://shipsofscale.com/sosforums/threads/chevrolet-corvette-2022-stingray-coupe.17545/page-2\">Page 2</a></td></tr>"},""]
[" ",null,null,null,null,null,"<tr><td><strong> </strong></td><td></td><td><a href=\"\"></a></td><td></td></tr>","<tr><td><strong> </strong></td>","<td></td>","<td><a href=\"\"></a></td>",0,"<td></td></tr>",""]
["Car -  Ryan Blaney","Another NASCAR","https://shipsofscale.com/sosforums/threads/another-nascar.17802/","https://shipsofscale.com/sosforums/threads/marvels-hydra-coupe-1-12-scale-full-scratch-build.14926/page-17","Donnie",null,"<tr><td><strong>Car -  Ryan Blaney</strong></td><td>Donnie</td><td><a href=\"https://shipsofscale.com/sosforums/threads/another-nascar.17802/\">Another NASCAR</a></td><td></td></tr>","<tr><td><strong>Car -  Ryan Blaney</strong></td>","<td>Donnie</td>","<td><a href=\"https://shipsofscale.com/sosforums/threads/another-nascar.17802/\">Another NASCAR</a></td>",0,"<td></td></tr>",""]
[" ",null,null,null,null,null,"<tr><td><strong> </strong></td><td></td><td><a href=\"\"></a></td><td></td></tr>","<tr><td><strong> </strong></td>","<td></td>","<td><a href=\"\"></a></td>",0,"<td></td></tr>",""]
["Car - Alpha Romeo","1/12 scale Alfa Romeo 8c 2300 roadster build log [COMPLETED BUILD]","https://shipsofscale.com/sosforums/threads/1-12-scale-alfa-romeo-8c-2300-roadster-build-log-completed-build.10977/","https://shipsofscale.com/sosforums/threads/1-12-scale-alfa-romeo-8c-2300-roadster-build-log-completed-build.10977/page-10","François",10,"<tr><td><strong>Car - Alpha Romeo</strong></td><td>François</td><td><a href=\"https://shipsofscale.com/sosforums/threads/1-12-scale-alfa-romeo-8c-2300-roadster-build-log-completed-build.10977/\">1/12 scale Alfa Romeo 8c 2300 roadster build log [COMPLETED BUILD]</a></td><td><a href=\"https://shipsofscale.com/sosforums/threads/1-12-scale-alfa-romeo-8c-2300-roadster-build-log-completed-build.10977/page-10\">Page 10</a></td></tr>","<tr><td><strong>Car - Alpha Romeo</strong></td>","<td>François</td>","<td><a href=\"https://shipsofscale.com/sosforums/threads/1-12-scale-alfa-romeo-8c-2300-roadster-build-log-completed-build.10977/\">1/12 scale Alfa Romeo 8c 2300 roadster build log [COMPLETED BUILD]</a></td>",10,"<td><a href=\"https://shipsofscale.com/sosforums/threads/1-12-scale-alfa-romeo-8c-2300-roadster-build-log-completed-build.10977/page-10\">Page 10</a></td></tr>",""]
[" ","Alpha Romeo 8C 2300 Monza - Italeri [COMPLETED BUILD]","https://shipsofscale.com/sosforums/threads/alpha-romeo-8c-2300-monza-italeri-completed-build.10453/","https://shipsofscale.com/sosforums/threads/alpha-romeo-8c-2300-monza-italeri-completed-build.10453/page-4","Donnie",4,"<tr><td><strong> </strong></td><td>Donnie</td><td><a href=\"https://shipsofscale.com/sosforums/threads/alpha-romeo-8c-2300-monza-italeri-completed-build.10453/\">Alpha Romeo 8C 2300 Monza - Italeri [COMPLETED BUILD]</a></td><td><a href=\"https://shipsofscale.com/sosforums/threads/alpha-romeo-8c-2300-monza-italeri-completed-build.10453/page-4\">Page 4</a></td></tr>","<tr><td><strong> </strong></td>","<td>Donnie</td>","<td><a href=\"https://shipsofscale.com/sosforums/threads/alpha-romeo-8c-2300-monza-italeri-completed-build.10453/\">Alpha Romeo 8C 2300 Monza - Italeri [COMPLETED BUILD]</a></td>",4,"<td><a href=\"https://shipsofscale.com/sosforums/threads/alpha-romeo-8c-2300-monza-italeri-completed-build.10453/page-4\">Page 4</a></td></tr>",""]
[" ",null,null,null,null,null,"<tr><td><strong> </strong></td><td></td><td><a href=\"\"></a></td><td></td></tr>","<tr><td><strong> </strong></td>","<td></td>","<td><a href=\"\"></a></td>",0,"<td></td></tr>",""]
["Car - Bentley","1930 Bentley Blower by Aifix 1/12 build log [COMPLETED BUILD]","https://shipsofscale.com/sosforums/threads/1930-bentley-blower-by-aifix-1-12-build-log-completed-build.10782/","https://shipsofscale.com/sosforums/threads/1930-bentley-blower-by-aifix-1-12-build-log-completed-build.10782/page-21","François",21,"<tr><td><strong>Car - Bentley</strong></td><td>François</td><td><a href=\"https://shipsofscale.com/sosforums/threads/1930-bentley-blower-by-aifix-1-12-build-log-completed-build.10782/\">1930 Bentley Blower by Aifix 1/12 build log [COMPLETED BUILD]</a></td><td><a href=\"https://shipsofscale.com/sosforums/threads/1930-bentley-blower-by-aifix-1-12-build-log-completed-build.10782/page-21\">Page 21</a></td></tr>","<tr><td><strong>Car - Bentley</strong></td>","<td>François</td>","<td><a href=\"https://shipsofscale.com/sosforums/threads/1930-bentley-blower-by-aifix-1-12-build-log-completed-build.10782/\">1930 Bentley Blower by Aifix 1/12 build log [COMPLETED BUILD]</a></td>",21,"<td><a href=\"https://shipsofscale.com/sosforums/threads/1930-bentley-blower-by-aifix-1-12-build-log-completed-build.10782/page-21\">Page 21</a></td></tr>",""]
[" ","Airfix 1/12, 1930 Bentley Blower build log","https://shipsofscale.com/sosforums/threads/airfix-1-12-1930-bentley-blower-build-log.10782/","https://shipsofscale.com/sosforums/threads/airfix-1-12-1930-bentley-blower-build-log.10782/page-11","François",11,"<tr><td><strong> </strong></td><td>François</td><td><a href=\"https://shipsofscale.com/sosforums/threads/airfix-1-12-1930-bentley-blower-build-log.10782/\">Airfix 1/12, 1930 Bentley Blower build log</a></td><td><a href=\"https://shipsofscale.com/sosforums/threads/airfix-1-12-1930-bentley-blower-build-log.10782/page-11\">Page 11</a></td></tr>","<tr><td><strong> </strong></td>","<td>François</td>","<td><a href=\"https://shipsofscale.com/sosforums/threads/airfix-1-12-1930-bentley-blower-build-log.10782/\">Airfix 1/12, 1930 Bentley Blower build log</a></td>",11,"<td><a href=\"https://shipsofscale.com/sosforums/threads/airfix-1-12-1930-bentley-blower-build-log.10782/page-11\">Page 11</a></td></tr>",""]
[" ",null,null,null,null,null,"<tr><td><strong> </strong></td><td></td><td><a href=\"\"></a></td><td></td></tr>","<tr><td><strong> </strong></td>","<td></td>","<td><a href=\"\"></a></td>",0,"<td></td></tr>",""]
["Car - Brabham","Brabham BT44B Martini 1975 by Tamiya 1/12th scale","https://shipsofscale.com/sosforums/threads/brabham-bt44b-martini-1975-by-tamiya-1-12th-scale.11257/","https://shipsofscale.com/sosforums/threads/brabham-bt44b-martini-1975-by-tamiya-1-12th-scale.11257/page-2","Dean62",2,"<tr><td><strong>Car - Brabham</strong></td><td>Dean62</td><td><a href=\"https://shipsofscale.com/sosforums/threads/brabham-bt44b-martini-1975-by-tamiya-1-12th-scale.11257/\">Brabham BT44B Martini 1975 by Tamiya 1/12th scale</a></td><td><a href=\"https://shipsofscale.com/sosforums/threads/brabham-bt44b-martini-1975-by-tamiya-1-12th-scale.11257/page-2\">Page 2</a></td></tr>","<tr><td><strong>Car - Brabham</strong></td>","<td>Dean62</td>","<td><a href=\"https://shipsofscale.com/sosforums/threads/brabham-bt44b-martini-1975-by-tamiya-1-12th-scale.11257/\">Brabham BT44B Martini 1975 by Tamiya 1/12th scale</a></td>",2,"<td><a href=\"https://shipsofscale.com/sosforums/threads/brabham-bt44b-martini-1975-by-tamiya-1-12th-scale.11257/page-2\">Page 2</a></td></tr>",""]
[" ",null,null,null,null,null,"<tr><td><strong> </strong></td><td></td><td><a href=\"\"></a></td><td></td></tr>","<tr><td><strong> </strong></td>","<td></td>","<td><a href=\"\"></a></td>",0,"<td></td></tr>",""]
["Car - Brabham BT44","1/12 Brabham BT45","https://shipsofscale.com/sosforums/threads/1-12-brabham-bt45.17134/","https://shipsofscale.com/sosforums/threads/guillows-p-38-lightning.15329/page-19","TRS7139",null,"<tr><td><strong>Car - Brabham BT44</strong></td><td>TRS7139</td><td><a href=\"https://shipsofscale.com/sosforums/threads/1-12-brabham-bt45.17134/\">1/12 Brabham BT45</a></td><td></td></tr>","<tr><td><strong>Car - Brabham BT44</strong></td>","<td>TRS7139</td>","<td><a href=\"https://shipsofscale.com/sosforums/threads/1-12-brabham-bt45.17134/\">1/12 Brabham BT45</a></td>",0,"<td></td></tr>",""]
[" ",null,null,null,null,null,"<tr><td><strong> </strong></td><td></td><td><a href=\"\"></a></td><td></td></tr>","<tr><td><strong> </strong></td>","<td></td>","<td><a href=\"\"></a></td>",0,"<td></td></tr>",""]
["Car - Bugatti Type 35B","Bugatti Type 35B [COMPLETED BUILD]","https://shipsofscale.com/sosforums/threads/bugatti-type-35b-completed-build.14981/","https://shipsofscale.com/sosforums/threads/bugatti-type-35b-completed-build.14981/page-4","Donnie",4,"<tr><td><strong>Car - Bugatti Type 35B</strong></td><td>Donnie</td><td><a href=\"https://shipsofscale.com/sosforums/threads/bugatti-type-35b-completed-build.14981/\">Bugatti Type 35B [COMPLETED BUILD]</a></td><td><a href=\"https://shipsofscale.com/sosforums/threads/bugatti-type-35b-completed-build.14981/page-4\">Page 4</a></td></tr>","<tr><td><strong>Car - Bugatti Type 35B</strong></td>","<td>Donnie</td>","<td><a href=\"https://shipsofscale.com/sosforums/threads/bugatti-type-35b-completed-build.14981/\">Bugatti Type 35B [COMPLETED BUILD]</a></td>",4,"<td><a href=\"https://shipsofscale.com/sosforums/threads/bugatti-type-35b-completed-build.14981/page-4\">Page 4</a></td></tr>",""]
[" ",null,null,null,null,null,"<tr><td><strong> </strong></td><td></td><td><a href=\"\"></a></td><td></td></tr>","<tr><td><strong> </strong></td>","<td></td>","<td><a href=\"\"></a></td>",0,"<td></td></tr>",""]
["Car - Corvette","Revell 68 Corvette 1/25 scale","https://shipsofscale.com/sosforums/threads/revell-68-corvette-1-25-scale.17747/","https://shipsofscale.com/sosforums/threads/revell-68-corvette-1-25-scale.17747/page-2","Dean62",2,"<tr><td><strong>Car - Corvette</strong></td><td>Dean62</td><td><a href=\"https://shipsofscale.com/sosforums/threads/revell-68-corvette-1-25-scale.17747/\">Revell 68 Corvette 1/25 scale</a></td><td><a href=\"https://shipsofscale.com/sosforums/threads/revell-68-corvette-1-25-scale.17747/page-2\">Page 2</a></td></tr>","<tr><td><strong>Car - Corvette</strong></td>","<td>Dean62</td>","<td><a href=\"https://shipsofscale.com/sosforums/threads/revell-68-corvette-1-25-scale.17747/\">Revell 68 Corvette 1/25 scale</a></td>",2,"<td><a href=\"https://shipsofscale.com/sosforums/threads/revell-68-corvette-1-25-scale.17747/page-2\">Page 2</a></td></tr>",""]
[" ",null,null,null,null,null,"<tr><td><strong> </strong></td><td></td><td><a href=\"\"></a></td><td></td></tr>","<tr><td><strong> </strong></td>","<td></td>","<td><a href=\"\"></a></td>",0,"<td></td></tr>",""]
["Car - Ferrari 166 Barchetta 1/17","Ferrari 166 Barchetta 1/18","https://shipsofscale.com/sosforums/threads/ferrari-166-barchetta-1-18.17152/","https://shipsofscale.com/sosforums/threads/du-doch-nicht-eduard-1-72-scale-completed-build.12266/page-9","TRS7139",null,"<tr><td><strong>Car - Ferrari 166 Barchetta 1/17</strong></td><td>TRS7139</td><td><a href=\"https://shipsofscale.com/sosforums/threads/ferrari-166-barchetta-1-18.17152/\">Ferrari 166 Barchetta 1/18</a></td><td></td></tr>","<tr><td><strong>Car - Ferrari 166 Barchetta 1/17</strong></td>","<td>TRS7139</td>","<td><a href=\"https://shipsofscale.com/sosforums/threads/ferrari-166-barchetta-1-18.17152/\">Ferrari 166 Barchetta 1/18</a></td>",0,"<td></td></tr>",""]
[" ",null,null,null,null,null,"<tr><td><strong> </strong></td><td></td><td><a href=\"\"></a></td><td></td></tr>","<tr><td><strong> </strong></td>","<td></td>","<td><a href=\"\"></a></td>",0,"<td></td></tr>",""]
["Car - Ferrari GTO","1/24 Ferrari GTO 1964","https://shipsofscale.com/sosforums/threads/1-24-ferrari-gto-1964.17133/","https://shipsofscale.com/sosforums/threads/guillows-p-38-lightning.15329/page-19","TRS7139",null,"<tr><td><strong>Car - Ferrari GTO</strong></td><td>TRS7139</td><td><a href=\"https://shipsofscale.com/sosforums/threads/1-24-ferrari-gto-1964.17133/\">1/24 Ferrari GTO 1964</a></td><td></td></tr>","<tr><td><strong>Car - Ferrari GTO</strong></td>","<td>TRS7139</td>","<td><a href=\"https://shipsofscale.com/sosforums/threads/1-24-ferrari-gto-1964.17133/\">1/24 Ferrari GTO 1964</a></td>",0,"<td></td></tr>",""]
[" ","1/43 Ferrari GTO","https://shipsofscale.com/sosforums/threads/1-43-ferrari-gto.17135/","https://shipsofscale.com/sosforums/threads/guillows-p-38-lightning.15329/page-19","TRS7139",null,"<tr><td><strong> </strong></td><td>TRS7139</td><td><a href=\"https://shipsofscale.com/sosforums/threads/1-43-ferrari-gto.17135/\">1/43 Ferrari GTO</a></td><td></td></tr>","<tr><td><strong> </strong></td>","<td>TRS7139</td>","<td><a href=\"https://shipsofscale.com/sosforums/threads/1-43-ferrari-gto.17135/\">1/43 Ferrari GTO</a></td>",0,"<td></td></tr>",""]
[" ",null,null,null,null,null,"<tr><td><strong> </strong></td><td></td><td><a href=\"\"></a></td><td></td></tr>","<tr><td><strong> </strong></td>","<td></td>","<td><a href=\"\"></a></td>",0,"<td></td></tr>",""]
["Car - Hydra coupe","Marvel's Hydra Coupe 1/12 scale full scratch build","https://shipsofscale.com/sosforums/threads/marvels-hydra-coupe-1-12-scale-full-scratch-build.14926/","https://shipsofscale.com/sosforums/threads/marvels-hydra-coupe-1-12-scale-full-scratch-build.14926/page-17","François",17,"<tr><td><strong>Car - Hydra coupe</strong></td><td>François</td><td><a href=\"https://shipsofscale.com/sosforums/threads/marvels-hydra-coupe-1-12-scale-full-scratch-build.14926/\">Marvel's Hydra Coupe 1/12 scale full scratch build</a></td><td><a href=\"https://shipsofscale.com/sosforums/threads/marvels-hydra-coupe-1-12-scale-full-scratch-build.14926/page-17\">Page 17</a></td></tr>","<tr><td><strong>Car - Hydra coupe</strong></td>","<td>François</td>","<td><a href=\"https://shipsofscale.com/sosforums/threads/marvels-hydra-coupe-1-12-scale-full-scratch-build.14926/\">Marvel's Hydra Coupe 1/12 scale full scratch build</a></td>",17,"<td><a href=\"https://shipsofscale.com/sosforums/threads/marvels-hydra-coupe-1-12-scale-full-scratch-build.14926/page-17\">Page 17</a></td></tr>",""]
[" ",null,null,null,null,null,"<tr><td><strong> </strong></td><td></td><td><a href=\"\"></a></td><td></td></tr>","<tr><td><strong> </strong></td>","<td></td>","<td><a href=\"\"></a></td>",0,"<td></td></tr>",""]
["Car-  Keselowski #9","NASCAR: Keselowski #9 car Build","https://shipsofscale.com/sosforums/threads/nascar-keselowski-9-car-build.17509/","https://shipsofscale.com/sosforums/threads/chevrolet-corvette-2022-stingray-coupe.17545/page-2","Donnie",null,"<tr><td><strong>Car-  Keselowski #9</strong></td><td>Donnie</td><td><a href=\"https://shipsofscale.com/sosforums/threads/nascar-keselowski-9-car-build.17509/\">NASCAR: Keselowski #9 car Build</a></td><td></td></tr>","<tr><td><strong>Car-  Keselowski #9</strong></td>","<td>Donnie</td>","<td><a href=\"https://shipsofscale.com/sosforums/threads/nascar-keselowski-9-car-build.17509/\">NASCAR: Keselowski #9 car Build</a></td>",0,"<td></td></tr>",""]
[" ",null,null,null,null,null,"<tr><td><strong> </strong></td><td></td><td><a href=\"\"></a></td><td></td></tr>","<tr><td><strong> </strong></td>","<td></td>","<td><a href=\"\"></a></td>",0,"<td></td></tr>",""]
["Car - Lotus","Pocher 1:8 scale Lotus 72 [COMPLETED BUILD]","https://shipsofscale.com/sosforums/threads/pocher-1-8-scale-lotus-72-completed-build.11917/","https://shipsofscale.com/sosforums/threads/pocher-1-8-scale-lotus-72-completed-build.11917/page-16","Dean62",16,"<tr><td><strong>Car - Lotus</strong></td><td>Dean62</td><td><a href=\"https://shipsofscale.com/sosforums/threads/pocher-1-8-scale-lotus-72-completed-build.11917/\">Pocher 1:8 scale Lotus 72 [COMPLETED BUILD]</a></td><td><a href=\"https://shipsofscale.com/sosforums/threads/pocher-1-8-scale-lotus-72-completed-build.11917/page-16\">Page 16</a></td></tr>","<tr><td><strong>Car - Lotus</strong></td>","<td>Dean62</td>","<td><a href=\"https://shipsofscale.com/sosforums/threads/pocher-1-8-scale-lotus-72-completed-build.11917/\">Pocher 1:8 scale Lotus 72 [COMPLETED BUILD]</a></td>",16,"<td><a href=\"https://shipsofscale.com/sosforums/threads/pocher-1-8-scale-lotus-72-completed-build.11917/page-16\">Page 16</a></td></tr>",""]
[" ",null,null,null,null,null,"<tr><td><strong> </strong></td><td></td><td><a href=\"\"></a></td><td></td></tr>","<tr><td><strong> </strong></td>","<td></td>","<td><a href=\"\"></a></td>",0,"<td></td></tr>",""]
["Car - Lotus Renault","Ayrton Senna’s Lotus Renault 97T 1:8 Scale Metal","https://shipsofscale.com/sosforums/threads/ayrton-senna%E2%80%99s-lotus-renault-97t-1-8-scale-metal.15031/","https://shipsofscale.com/sosforums/threads/ayrton-senna%E2%80%99s-lotus-renault-97t-1-8-scale-metal.15031/page-2","Donnie",2,"<tr><td><strong>Car - Lotus Renault</strong></td><td>Donnie</td><td><a href=\"https://shipsofscale.com/sosforums/threads/ayrton-senna%E2%80%99s-lotus-renault-97t-1-8-scale-metal.15031/\">Ayrton Senna’s Lotus Renault 97T 1:8 Scale Metal</a></td><td><a href=\"https://shipsofscale.com/sosforums/threads/ayrton-senna%E2%80%99s-lotus-renault-97t-1-8-scale-metal.15031/page-2\">Page 2</a></td></tr>","<tr><td><strong>Car - Lotus Renault</strong></td>","<td>Donnie</td>","<td><a href=\"https://shipsofscale.com/sosforums/threads/ayrton-senna%E2%80%99s-lotus-renault-97t-1-8-scale-metal.15031/\">Ayrton Senna’s Lotus Renault 97T 1:8 Scale Metal</a></td>",2,"<td><a href=\"https://shipsofscale.com/sosforums/threads/ayrton-senna%E2%80%99s-lotus-renault-97t-1-8-scale-metal.15031/page-2\">Page 2</a></td></tr>",""]
[" ",null,null,null,null,null,"<tr><td><strong> </strong></td><td></td><td><a href=\"\"></a></td><td></td></tr>","<tr><td><strong> </strong></td>","<td></td>","<td><a href=\"\"></a></td>",0,"<td></td></tr>",""]
["Car - Porsche 908/2","1/12 Porsche 908/3","https://shipsofscale.com/sosforums/threads/1-12-porsche-908-3.17132/","https://shipsofscale.com/sosforums/threads/guillows-p-38-lightning.15329/page-19","TRS7139",null,"<tr><td><strong>Car - Porsche 908/2</strong></td><td>TRS7139</td><td><a href=\"https://shipsofscale.com/sosforums/threads/1-12-porsche-908-3.17132/\">1/12 Porsche 908/3</a></td><td></td></tr>","<tr><td><strong>Car - Porsche 908/2</strong></td>","<td>TRS7139</td>","<td><a href=\"https://shipsofscale.com/sosforums/threads/1-12-porsche-908-3.17132/\">1/12 Porsche 908/3</a></td>",0,"<td></td></tr>",""]
[" ",null,null,null,null,null,"<tr><td><strong> </strong></td><td></td><td><a href=\"\"></a></td><td></td></tr>","<tr><td><strong> </strong></td>","<td></td>","<td><a href=\"\"></a></td>",0,"<td></td></tr>",""]
["Car - Porsche 917K","Pocher 1:8 scale Porsche 917K","https://shipsofscale.com/sosforums/threads/pocher-1-8-scale-porsche-917k.15666/","https://shipsofscale.com/sosforums/threads/pocher-1-8-scale-porsche-917k.15666/page-10","Dean62",10,"<tr><td><strong>Car - Porsche 917K</strong></td><td>Dean62</td><td><a href=\"https://shipsofscale.com/sosforums/threads/pocher-1-8-scale-porsche-917k.15666/\">Pocher 1:8 scale Porsche 917K</a></td><td><a href=\"https://shipsofscale.com/sosforums/threads/pocher-1-8-scale-porsche-917k.15666/page-10\">Page 10</a></td></tr>","<tr><td><strong>Car - Porsche 917K</strong></td>","<td>Dean62</td>","<td><a href=\"https://shipsofscale.com/sosforums/threads/pocher-1-8-scale-porsche-917k.15666/\">Pocher 1:8 scale Porsche 917K</a></td>",10,"<td><a href=\"https://shipsofscale.com/sosforums/threads/pocher-1-8-scale-porsche-917k.15666/page-10\">Page 10</a></td></tr>",""]
[" ",null,null,null,null,null,"<tr><td><strong> </strong></td><td></td><td><a href=\"\"></a></td><td></td></tr>","<tr><td><strong> </strong></td>","<td></td>","<td><a href=\"\"></a></td>",0,"<td></td></tr>",""]
["Car - Ramchargers1963 Dodge 330 SS","1964 Dodge 330 SS Ramchargers","https://shipsofscale.com/sosforums/threads/1964-dodge-330-ss-ramchargers.15552/","https://shipsofscale.com/sosforums/threads/1964-dodge-330-ss-ramchargers.15552/page-2","Donnie",2,"<tr><td><strong>Car - Ramchargers1963 Dodge 330 SS</strong></td><td>Donnie</td><td><a href=\"https://shipsofscale.com/sosforums/threads/1964-dodge-330-ss-ramchargers.15552/\">1964 Dodge 330 SS Ramchargers</a></td><td><a href=\"https://shipsofscale.com/sosforums/threads/1964-dodge-330-ss-ramchargers.15552/page-2\">Page 2</a></td></tr>","<tr><td><strong>Car - Ramchargers1963 Dodge 330 SS</strong></td>","<td>Donnie</td>","<td><a href=\"https://shipsofscale.com/sosforums/threads/1964-dodge-330-ss-ramchargers.15552/\">1964 Dodge 330 SS Ramchargers</a></td>",2,"<td><a href=\"https://shipsofscale.com/sosforums/threads/1964-dodge-330-ss-ramchargers.15552/page-2\">Page 2</a></td></tr>",""]
[" ",null,null,null,null,null,"<tr><td><strong> </strong></td><td></td><td><a href=\"\"></a></td><td></td></tr>","<tr><td><strong> </strong></td>","<td></td>","<td><a href=\"\"></a></td>",0,"<td></td></tr>",""]
["Character","Model of classic RuneScape king black dragon - piñata","https://shipsofscale.com/sosforums/threads/model-of-classic-runescape-king-black-dragon-pi%C3%B1ata.17642/","https://shipsofscale.com/sosforums/threads/model-of-classic-runescape-king-black-dragon-pi%C3%B1ata.17642/page-6","DerezzedDragon",6,"<tr><td><strong>Character</strong></td><td>DerezzedDragon</td><td><a href=\"https://shipsofscale.com/sosforums/threads/model-of-classic-runescape-king-black-dragon-pi%C3%B1ata.17642/\">Model of classic RuneScape king black dragon - piñata</a></td><td><a href=\"https://shipsofscale.com/sosforums/threads/model-of-classic-runescape-king-black-dragon-pi%C3%B1ata.17642/page-6\">Page 6</a></td></tr>","<tr><td><strong>Character</strong></td>","<td>DerezzedDragon</td>","<td><a href=\"https://shipsofscale.com/sosforums/threads/model-of-classic-runescape-king-black-dragon-pi%C3%B1ata.17642/\">Model of classic RuneScape king black dragon - piñata</a></td>",6,"<td><a href=\"https://shipsofscale.com/sosforums/threads/model-of-classic-runescape-king-black-dragon-pi%C3%B1ata.17642/page-6\">Page 6</a></td></tr>",""]
[" ",null,null,null,null,null,"<tr><td><strong> </strong></td><td></td><td><a href=\"\"></a></td><td></td></tr>","<tr><td><strong> </strong></td>","<td></td>","<td><a href=\"\"></a></td>",0,"<td></td></tr>",""]
["Csr - Mercedes 300 SL","Mercedes 300 SL","https://shipsofscale.com/sosforums/threads/mercedes-300-sl.17508/","https://shipsofscale.com/sosforums/threads/chevrolet-corvette-2022-stingray-coupe.17545/page-2","Donnie",null,"<tr><td><strong>Csr - Mercedes 300 SL</strong></td><td>Donnie</td><td><a href=\"https://shipsofscale.com/sosforums/threads/mercedes-300-sl.17508/\">Mercedes 300 SL</a></td><td></td></tr>","<tr><td><strong>Csr - Mercedes 300 SL</strong></td>","<td>Donnie</td>","<td><a href=\"https://shipsofscale.com/sosforums/threads/mercedes-300-sl.17508/\">Mercedes 300 SL</a></td>",0,"<td></td></tr>",""]
[" ",null,null,null,null,null,"<tr><td><strong> </strong></td><td></td><td><a href=\"\"></a></td><td></td></tr>","<tr><td><strong> </strong></td>","<td></td>","<td><a href=\"\"></a></td>",0,"<td></td></tr>",""]
[" ",null,null,null,null,null,"</tbody></table><hr /><p><a href=\"#TOP\">Back to Top</a></p><div style=\"text-align: left;\"><hr /><a name=\"G\"></a><strong>G</strong></div><table width=\"100%\" border=\"0\"><tbody><tr><td width=\"20%\"><span style=\"text-decoration: underline;\"><strong>Model type & name</strong></span></td><td width=\"12%\"><span style=\"text-decoration: underline;\"><strong>By</strong></span></td><td width=\"62%\"><span style=\"text-decoration: underline;\"><strong>Topic</strong></span></td><td width=\"6%\"><span style=\"text-decoration: underline;\"><strong>Latest</strong></span></td>",null,null,null,null,null,""]
["Guns - Bombarda","Artesania Latina 1:50 Bombarda s.XV Gun Placement Display","https://shipsofscale.com/sosforums/threads/artesania-latina-1-50-bombarda-s-xv-gun-placement-display.8845/","https://shipsofscale.com/sosforums/threads/wright-flyer-model-airways-1-16-completed-build.8858/page-2","Kurt Konrath",null,"<tr><td><strong>Guns - Bombarda</strong></td><td>Kurt Konrath</td><td><a href=\"https://shipsofscale.com/sosforums/threads/artesania-latina-1-50-bombarda-s-xv-gun-placement-display.8845/\">Artesania Latina 1:50 Bombarda s.XV Gun Placement Display</a></td><td></td></tr>","<tr><td><strong>Guns - Bombarda</strong></td>","<td>Kurt Konrath</td>","<td><a href=\"https://shipsofscale.com/sosforums/threads/artesania-latina-1-50-bombarda-s-xv-gun-placement-display.8845/\">Artesania Latina 1:50 Bombarda s.XV Gun Placement Display</a></td>",0,"<td></td></tr>",""]
[" ",null,null,null,null,null,"<tr><td><strong> </strong></td><td></td><td><a href=\"\"></a></td><td></td></tr>","<tr><td><strong> </strong></td>","<td></td>","<td><a href=\"\"></a></td>",0,"<td></td></tr>",""]
["Guns - Cannon","18th Century Ship's Cannon - Completed","https://shipsofscale.com/sosforums/threads/18th-century-ships-cannon-completed.7022/","https://shipsofscale.com/sosforums/threads/model-trailways-concord-stagecoach-1-12-scale.2771/page-4","JohnR",null,"<tr><td><strong>Guns - Cannon</strong></td><td>JohnR</td><td><a href=\"https://shipsofscale.com/sosforums/threads/18th-century-ships-cannon-completed.7022/\">18th Century Ship's Cannon - Completed</a></td><td></td></tr>","<tr><td><strong>Guns - Cannon</strong></td>","<td>JohnR</td>","<td><a href=\"https://shipsofscale.com/sosforums/threads/18th-century-ships-cannon-completed.7022/\">18th Century Ship's Cannon - Completed</a></td>",0,"<td></td></tr>",""]
[" ","American Coastal Cannon - Mantua - 1:17","https://shipsofscale.com/sosforums/threads/american-coastal-cannon-mantua-1-17.9546/","https://shipsofscale.com/sosforums/threads/model-airways-fokker-eindecker-completed-build.10142/page-4","JohnR",null,"<tr><td><strong> </strong></td><td>JohnR</td><td><a href=\"https://shipsofscale.com/sosforums/threads/american-coastal-cannon-mantua-1-17.9546/\">American Coastal Cannon - Mantua - 1:17</a></td><td></td></tr>","<tr><td><strong> </strong></td>","<td>JohnR</td>","<td><a href=\"https://shipsofscale.com/sosforums/threads/american-coastal-cannon-mantua-1-17.9546/\">American Coastal Cannon - Mantua - 1:17</a></td>",0,"<td></td></tr>",""]
[" ","Indonesian brass Lantaka cannon miniature version (fires)","https://shipsofscale.com/sosforums/threads/indonesian-brass-lantaka-cannon-miniature-version-fires.17497/","https://shipsofscale.com/sosforums/threads/chevrolet-corvette-2022-stingray-coupe.17545/page-2","Rawiri",null,"<tr><td><strong> </strong></td><td>Rawiri</td><td><a href=\"https://shipsofscale.com/sosforums/threads/indonesian-brass-lantaka-cannon-miniature-version-fires.17497/\">Indonesian brass Lantaka cannon miniature version (fires)</a></td><td></td></tr>","<tr><td><strong> </strong></td>","<td>Rawiri</td>","<td><a href=\"https://shipsofscale.com/sosforums/threads/indonesian-brass-lantaka-cannon-miniature-version-fires.17497/\">Indonesian brass Lantaka cannon miniature version (fires)</a></td>",0,"<td></td></tr>",""]
[" ","Old Ironsides Replica Cannon","https://shipsofscale.com/sosforums/threads/old-ironsides-replica-cannon.8747/","https://shipsofscale.com/sosforums/threads/model-airways-fokker-eindecker-completed-build.10142/page-4","GAStan",null,"<tr><td><strong> </strong></td><td>GAStan</td><td><a href=\"https://shipsofscale.com/sosforums/threads/old-ironsides-replica-cannon.8747/\">Old Ironsides Replica Cannon</a></td><td></td></tr>","<tr><td><strong> </strong></td>","<td>GAStan</td>","<td><a href=\"https://shipsofscale.com/sosforums/threads/old-ironsides-replica-cannon.8747/\">Old Ironsides Replica Cannon</a></td>",0,"<td></td></tr>",""]
[" ",null,null,null,null,null,"<tr><td><strong> </strong></td><td></td><td><a href=\"\"></a></td><td></td></tr>","<tr><td><strong> </strong></td>","<td></td>","<td><a href=\"\"></a></td>",0,"<td></td></tr>",""]
["Guns - Gatling Gun","Gatling Gun - Metal Earth","https://shipsofscale.com/sosforums/threads/gatling-gun-metal-earth.8670/","https://shipsofscale.com/sosforums/threads/sopwith-camel-f-1-wwi-fighter-1-16-scale-3-4-1.3206/page-2","JohnR",null,"<tr><td><strong>Guns - Gatling Gun</strong></td><td>JohnR</td><td><a href=\"https://shipsofscale.com/sosforums/threads/gatling-gun-metal-earth.8670/\">Gatling Gun - Metal Earth</a></td><td></td></tr>","<tr><td><strong>Guns - Gatling Gun</strong></td>","<td>JohnR</td>","<td><a href=\"https://shipsofscale.com/sosforums/threads/gatling-gun-metal-earth.8670/\">Gatling Gun - Metal Earth</a></td>",0,"<td></td></tr>",""]
[" ","Historic Artillery Gatling Gun by Model Expo","https://shipsofscale.com/sosforums/threads/historic-artillery-gatling-gun-by-model-expo.11440/","https://shipsofscale.com/sosforums/threads/model-airways-fokker-eindecker-completed-build.10142/page-4","Kurt Konrath",null,"<tr><td><strong> </strong></td><td>Kurt Konrath</td><td><a href=\"https://shipsofscale.com/sosforums/threads/historic-artillery-gatling-gun-by-model-expo.11440/\">Historic Artillery Gatling Gun by Model Expo</a></td><td></td></tr>","<tr><td><strong> </strong></td>","<td>Kurt Konrath</td>","<td><a href=\"https://shipsofscale.com/sosforums/threads/historic-artillery-gatling-gun-by-model-expo.11440/\">Historic Artillery Gatling Gun by Model Expo</a></td>",0,"<td></td></tr>",""]
[" ",null,null,null,null,null,"<tr><td><strong> </strong></td><td></td><td><a href=\"\"></a></td><td></td></tr>","<tr><td><strong> </strong></td>","<td></td>","<td><a href=\"\"></a></td>",0,"<td></td></tr>",""]
[" ",null,null,null,null,null,"</tbody></table><hr /><p><a href=\"#TOP\">Back to Top</a></p><div style=\"text-align: left;\"><hr /><a name=\"L\"></a><strong>L</strong></div><table width=\"100%\" border=\"0\"><tbody><tr><td width=\"20%\"><span style=\"text-decoration: underline;\"><strong>Model type & name</strong></span></td><td width=\"12%\"><span style=\"text-decoration: underline;\"><strong>By</strong></span></td><td width=\"62%\"><span style=\"text-decoration: underline;\"><strong>Topic</strong></span></td><td width=\"6%\"><span style=\"text-decoration: underline;\"><strong>Latest</strong></span></td>",null,null,null,null,null,""]
["Locomotive - Rocket","Stephenson's Rocket, Early Locomotive - by OcCre - a49kid - Wayne","https://shipsofscale.com/sosforums/threads/stephensons-rocket-early-locomotive-by-occre-a49kid-wayne.14671/","https://shipsofscale.com/sosforums/threads/stagecoach-build-by-artesan%C3%ADa-latina-completed-build.13490/page-5","a49kid",null,"<tr><td><strong>Locomotive - Rocket</strong></td><td>a49kid</td><td><a href=\"https://shipsofscale.com/sosforums/threads/stephensons-rocket-early-locomotive-by-occre-a49kid-wayne.14671/\">Stephenson's Rocket, Early Locomotive - by OcCre - a49kid - Wayne</a></td><td></td></tr>","<tr><td><strong>Locomotive - Rocket</strong></td>","<td>a49kid</td>","<td><a href=\"https://shipsofscale.com/sosforums/threads/stephensons-rocket-early-locomotive-by-occre-a49kid-wayne.14671/\">Stephenson's Rocket, Early Locomotive - by OcCre - a49kid - Wayne</a></td>",0,"<td></td></tr>",""]
[" ",null,null,null,null,null,"<tr><td><strong> </strong></td><td></td><td><a href=\"\"></a></td><td></td></tr>","<tr><td><strong> </strong></td>","<td></td>","<td><a href=\"\"></a></td>",0,"<td></td></tr>",""]
[" ",null,null,null,null,null,"</tbody></table><hr /><p><a href=\"#TOP\">Back to Top</a></p><div style=\"text-align: left;\"><hr /><a name=\"M\"></a><strong>M</strong></div><table width=\"100%\" border=\"0\"><tbody><tr><td width=\"20%\"><span style=\"text-decoration: underline;\"><strong>Model type & name</strong></span></td><td width=\"12%\"><span style=\"text-decoration: underline;\"><strong>By</strong></span></td><td width=\"62%\"><span style=\"text-decoration: underline;\"><strong>Topic</strong></span></td><td width=\"6%\"><span style=\"text-decoration: underline;\"><strong>Latest</strong></span></td>",null,null,null,null,null,""]
["Motorcycle","Motorcycle from scratch","https://shipsofscale.com/sosforums/threads/motorcycle-from-scratch.12446/","https://shipsofscale.com/sosforums/threads/brabham-bt44b-martini-1975-by-tamiya-1-12th-scale.11257/page-2","TimV",null,"<tr><td><strong>Motorcycle</strong></td><td>TimV</td><td><a href=\"https://shipsofscale.com/sosforums/threads/motorcycle-from-scratch.12446/\">Motorcycle from scratch</a></td><td></td></tr>","<tr><td><strong>Motorcycle</strong></td>","<td>TimV</td>","<td><a href=\"https://shipsofscale.com/sosforums/threads/motorcycle-from-scratch.12446/\">Motorcycle from scratch</a></td>",0,"<td></td></tr>",""]
[" ",null,null,null,null,null,"<tr><td><strong> </strong></td><td></td><td><a href=\"\"></a></td><td></td></tr>","<tr><td><strong> </strong></td>","<td></td>","<td><a href=\"\"></a></td>",0,"<td></td></tr>",""]
["Motorcycle - Triumph Tr6","Triumph Tr6, 3d printed large scale","https://shipsofscale.com/sosforums/threads/triumph-tr6-3d-printed-large-scale.17843/","https://shipsofscale.com/sosforums/threads/triumph-tr6-3d-printed-large-scale.17843/page-3","François",3,"<tr><td><strong>Motorcycle - Triumph Tr6</strong></td><td>François</td><td><a href=\"https://shipsofscale.com/sosforums/threads/triumph-tr6-3d-printed-large-scale.17843/\">Triumph Tr6, 3d printed large scale</a></td><td><a href=\"https://shipsofscale.com/sosforums/threads/triumph-tr6-3d-printed-large-scale.17843/page-3\">Page 3</a></td></tr>","<tr><td><strong>Motorcycle - Triumph Tr6</strong></td>","<td>François</td>","<td><a href=\"https://shipsofscale.com/sosforums/threads/triumph-tr6-3d-printed-large-scale.17843/\">Triumph Tr6, 3d printed large scale</a></td>",3,"<td><a href=\"https://shipsofscale.com/sosforums/threads/triumph-tr6-3d-printed-large-scale.17843/page-3\">Page 3</a></td></tr>",""]
[" ",null,null,null,null,null,"<tr><td><strong> </strong></td><td></td><td><a href=\"\"></a></td><td></td></tr>","<tr><td><strong> </strong></td>","<td></td>","<td><a href=\"\"></a></td>",0,"<td></td></tr>",""]
[" ",null,null,null,null,null,"</tbody></table><hr /><p><a href=\"#TOP\">Back to Top</a></p><div style=\"text-align: left;\"><hr /><a name=\"P\"></a><strong>P</strong></div><table width=\"100%\" border=\"0\"><tbody><tr><td width=\"20%\"><span style=\"text-decoration: underline;\"><strong>Model type & name</strong></span></td><td width=\"12%\"><span style=\"text-decoration: underline;\"><strong>By</strong></span></td><td width=\"62%\"><span style=\"text-decoration: underline;\"><strong>Topic</strong></span></td><td width=\"6%\"><span style=\"text-decoration: underline;\"><strong>Latest</strong></span></td>",null,null,null,null,null,""]
["Pl;ane - Oberursel Engine","Oberursel UR III WW I Rotary Engine (Model Airways; 1:16) [COMPLETED BUILD]","https://shipsofscale.com/sosforums/threads/oberursel-ur-iii-ww-i-rotary-engine-model-airways-1-16-completed-build.9708/","https://shipsofscale.com/sosforums/threads/model-airways-fokker-eindecker-completed-build.10142/page-4","JohnR",null,"<tr><td><strong>Pl;ane - Oberursel Engine</strong></td><td>JohnR</td><td><a href=\"https://shipsofscale.com/sosforums/threads/oberursel-ur-iii-ww-i-rotary-engine-model-airways-1-16-completed-build.9708/\">Oberursel UR III WW I Rotary Engine (Model Airways; 1:16) [COMPLETED BUILD]</a></td><td></td></tr>","<tr><td><strong>Pl;ane - Oberursel Engine</strong></td>","<td>JohnR</td>","<td><a href=\"https://shipsofscale.com/sosforums/threads/oberursel-ur-iii-ww-i-rotary-engine-model-airways-1-16-completed-build.9708/\">Oberursel UR III WW I Rotary Engine (Model Airways; 1:16) [COMPLETED BUILD]</a></td>",0,"<td></td></tr>",""]
[" ",null,null,null,null,null,"<tr><td><strong> </strong></td><td></td><td><a href=\"\"></a></td><td></td></tr>","<tr><td><strong> </strong></td>","<td></td>","<td><a href=\"\"></a></td>",0,"<td></td></tr>",""]
["Plane - Aerial Screw","Da Vinci Aerial Screw","https://shipsofscale.com/sosforums/threads/da-vinci-aerial-screw.8577/","https://shipsofscale.com/sosforums/threads/sopwith-camel-f-1-wwi-fighter-1-16-scale-3-4-1.3206/page-2","JohnR",null,"<tr><td><strong>Plane - Aerial Screw</strong></td><td>JohnR</td><td><a href=\"https://shipsofscale.com/sosforums/threads/da-vinci-aerial-screw.8577/\">Da Vinci Aerial Screw</a></td><td></td></tr>","<tr><td><strong>Plane - Aerial Screw</strong></td>","<td>JohnR</td>","<td><a href=\"https://shipsofscale.com/sosforums/threads/da-vinci-aerial-screw.8577/\">Da Vinci Aerial Screw</a></td>",0,"<td></td></tr>",""]
[" ",null,null,null,null,null,"<tr><td><strong> </strong></td><td></td><td><a href=\"\"></a></td><td></td></tr>","<tr><td><strong> </strong></td>","<td></td>","<td><a href=\"\"></a></td>",0,"<td></td></tr>",""]
["Plane - Airacobra","1:46 P-400 Airacobra - 67th Fighter Squadron - Guadalcanal (Aug 1942) [COMPLETED BUILD]","https://shipsofscale.com/sosforums/threads/1-46-p-400-airacobra-67th-fighter-squadron-guadalcanal-aug-1942-completed-build.8831/","https://shipsofscale.com/sosforums/threads/model-airways-fokker-eindecker-completed-build.10142/page-4","JohnR",null,"<tr><td><strong>Plane - Airacobra</strong></td><td>JohnR</td><td><a href=\"https://shipsofscale.com/sosforums/threads/1-46-p-400-airacobra-67th-fighter-squadron-guadalcanal-aug-1942-completed-build.8831/\">1:46 P-400 Airacobra - 67th Fighter Squadron - Guadalcanal (Aug 1942) [COMPLETED BUILD]</a></td><td></td></tr>","<tr><td><strong>Plane - Airacobra</strong></td>","<td>JohnR</td>","<td><a href=\"https://shipsofscale.com/sosforums/threads/1-46-p-400-airacobra-67th-fighter-squadron-guadalcanal-aug-1942-completed-build.8831/\">1:46 P-400 Airacobra - 67th Fighter Squadron - Guadalcanal (Aug 1942) [COMPLETED BUILD]</a></td>",0,"<td></td></tr>",""]
[" ",null,null,null,null,null,"<tr><td><strong> </strong></td><td></td><td><a href=\"\"></a></td><td></td></tr>","<tr><td><strong> </strong></td>","<td></td>","<td><a href=\"\"></a></td>",0,"<td></td></tr>",""]
["Plane - Albatros","Model Airways Albatros - D.va 1/16 scale","https://shipsofscale.com/sosforums/threads/model-airways-albatros-d-va-1-16-scale.9745/","https://shipsofscale.com/sosforums/threads/model-airways-albatros-d-va-1-16-scale.9745/page-2","Dean62",2,"<tr><td><strong>Plane - Albatros</strong></td><td>Dean62</td><td><a href=\"https://shipsofscale.com/sosforums/threads/model-airways-albatros-d-va-1-16-scale.9745/\">Model Airways Albatros - D.va 1/16 scale</a></td><td><a href=\"https://shipsofscale.com/sosforums/threads/model-airways-albatros-d-va-1-16-scale.9745/page-2\">Page 2</a></td></tr>","<tr><td><strong>Plane - Albatros</strong></td>","<td>Dean62</td>","<td><a href=\"https://shipsofscale.com/sosforums/threads/model-airways-albatros-d-va-1-16-scale.9745/\">Model Airways Albatros - D.va 1/16 scale</a></td>",2,"<td><a href=\"https://shipsofscale.com/sosforums/threads/model-airways-albatros-d-va-1-16-scale.9745/page-2\">Page 2</a></td></tr>",""]
[" ",null,null,null,null,null,{"$f":"H91&I91&J91&L91","v":"<tr><td><strong> </strong></td><td></td><td><a href=\"\"></a></td><td></td></tr>"},{"$f":"$L$1&$N$1&$J$1&A91&$J$2&$N$2","v":"<tr><td><strong> </strong></td>"},{"$f":"$N$1&E91&$N$2","v":"<td></td>"},{"$f":"$N$1&$O$1&C91&$P$1&B91&$O$2&$N$2","v":"<td><a href=\"\"></a></td>"},{"$f":"F91","v":0},{"$f":"$N$1&IF(K91>0,$O$1&D91&$P$1&\"Page \"&K91&$O$2,\"\")&$N$2&$L$2","v":"<td></td></tr>"},""]
["Plane - C-47  Dakota","Finished C-47 \"Dakota\"","https://shipsofscale.com/sosforums/threads/finished-c-47-dakota.17010/","https://shipsofscale.com/sosforums/threads/guillows-p-38-lightning.15329/page-19","uncchains",null,"<tr><td><strong>Plane - C-47  Dakota</strong></td><td>uncchains</td><td><a href=\"https://shipsofscale.com/sosforums/threads/finished-c-47-dakota.17010/\">Finished C-47 \"Dakota\"</a></td><td></td></tr>","<tr><td><strong>Plane - C-47  Dakota</strong></td>","<td>uncchains</td>","<td><a href=\"https://shipsofscale.com/sosforums/threads/finished-c-47-dakota.17010/\">Finished C-47 \"Dakota\"</a></td>",0,"<td></td></tr>",""]
[" ",null,null,null,null,null,"<tr><td><strong> </strong></td><td></td><td><a href=\"\"></a></td><td></td></tr>","<tr><td><strong> </strong></td>","<td></td>","<td><a href=\"\"></a></td>",0,"<td></td></tr>",""]
["Plane - Clerget Engine","Model Airways - Clerget 9B WW I Rotary Engine - 1:16","https://shipsofscale.com/sosforums/threads/model-airways-clerget-9b-ww-i-rotary-engine-1-16.7074/","https://shipsofscale.com/sosforums/threads/model-trailways-concord-stagecoach-1-12-scale.2771/page-4","JohnR",null,"<tr><td><strong>Plane - Clerget Engine</strong></td><td>JohnR</td><td><a href=\"https://shipsofscale.com/sosforums/threads/model-airways-clerget-9b-ww-i-rotary-engine-1-16.7074/\">Model Airways - Clerget 9B WW I Rotary Engine - 1:16</a></td><td></td></tr>","<tr><td><strong>Plane - Clerget Engine</strong></td>","<td>JohnR</td>","<td><a href=\"https://shipsofscale.com/sosforums/threads/model-airways-clerget-9b-ww-i-rotary-engine-1-16.7074/\">Model Airways - Clerget 9B WW I Rotary Engine - 1:16</a></td>",0,"<td></td></tr>",""]
[" ",null,null,null,null,null,"<tr><td><strong> </strong></td><td></td><td><a href=\"\"></a></td><td></td></tr>","<tr><td><strong> </strong></td>","<td></td>","<td><a href=\"\"></a></td>",0,"<td></td></tr>",""]
["Plane - Display case","Display Case for Wright Flyer","https://shipsofscale.com/sosforums/threads/display-case-for-wright-flyer.10620/","https://shipsofscale.com/sosforums/threads/model-airways-fokker-eindecker-completed-build.10142/page-4","JohnR",null,"<tr><td><strong>Plane - Display case</strong></td><td>JohnR</td><td><a href=\"https://shipsofscale.com/sosforums/threads/display-case-for-wright-flyer.10620/\">Display Case for Wright Flyer</a></td><td></td></tr>","<tr><td><strong>Plane - Display case</strong></td>","<td>JohnR</td>","<td><a href=\"https://shipsofscale.com/sosforums/threads/display-case-for-wright-flyer.10620/\">Display Case for Wright Flyer</a></td>",0,"<td></td></tr>",""]
[" ",null,null,null,null,null,"<tr><td><strong> </strong></td><td></td><td><a href=\"\"></a></td><td></td></tr>","<tr><td><strong> </strong></td>","<td></td>","<td><a href=\"\"></a></td>",0,"<td></td></tr>",""]
["Plane - Du Doch Nicht","Du Doch Nicht!! Eduard 1/72 scale [COMPLETED BUILD]","https://shipsofscale.com/sosforums/threads/du-doch-nicht-eduard-1-72-scale-completed-build.12266/","https://shipsofscale.com/sosforums/threads/du-doch-nicht-eduard-1-72-scale-completed-build.12266/page-9","Dean62",9,"<tr><td><strong>Plane - Du Doch Nicht</strong></td><td>Dean62</td><td><a href=\"https://shipsofscale.com/sosforums/threads/du-doch-nicht-eduard-1-72-scale-completed-build.12266/\">Du Doch Nicht!! Eduard 1/72 scale [COMPLETED BUILD]</a></td><td><a href=\"https://shipsofscale.com/sosforums/threads/du-doch-nicht-eduard-1-72-scale-completed-build.12266/page-9\">Page 9</a></td></tr>","<tr><td><strong>Plane - Du Doch Nicht</strong></td>","<td>Dean62</td>","<td><a href=\"https://shipsofscale.com/sosforums/threads/du-doch-nicht-eduard-1-72-scale-completed-build.12266/\">Du Doch Nicht!! Eduard 1/72 scale [COMPLETED BUILD]</a></td>",9,"<td><a href=\"https://shipsofscale.com/sosforums/threads/du-doch-nicht-eduard-1-72-scale-completed-build.12266/page-9\">Page 9</a></td></tr>",""]
[" ",null,null,null,null,null,"<tr><td><strong> </strong></td><td></td><td><a href=\"\"></a></td><td></td></tr>","<tr><td><strong> </strong></td>","<td></td>","<td><a href=\"\"></a></td>",0,"<td></td></tr>",""]
["Plane - Fantasy","Fantasy Flying Machine 1:30 scale (approx.)","https://shipsofscale.com/sosforums/threads/fantasy-flying-machine-1-30-scale-approx.12239/","https://shipsofscale.com/sosforums/threads/fantasy-flying-machine-1-30-scale-approx.12239/page-2","Carleroo",2,"<tr><td><strong>Plane - Fantasy</strong></td><td>Carleroo</td><td><a href=\"https://shipsofscale.com/sosforums/threads/fantasy-flying-machine-1-30-scale-approx.12239/\">Fantasy Flying Machine 1:30 scale (approx.)</a></td><td><a href=\"https://shipsofscale.com/sosforums/threads/fantasy-flying-machine-1-30-scale-approx.12239/page-2\">Page 2</a></td></tr>","<tr><td><strong>Plane - Fantasy</strong></td>","<td>Carleroo</td>","<td><a href=\"https://shipsofscale.com/sosforums/threads/fantasy-flying-machine-1-30-scale-approx.12239/\">Fantasy Flying Machine 1:30 scale (approx.)</a></td>",2,"<td><a href=\"https://shipsofscale.com/sosforums/threads/fantasy-flying-machine-1-30-scale-approx.12239/page-2\">Page 2</a></td></tr>",""]
[" ",null,null,null,null,null,"<tr><td><strong> </strong></td><td></td><td><a href=\"\"></a></td><td></td></tr>","<tr><td><strong> </strong></td>","<td></td>","<td><a href=\"\"></a></td>",0,"<td></td></tr>",""]
["Plane - Fokker","Fokker D.VII Rhoden 1:48","https://shipsofscale.com/sosforums/threads/fokker-d-vii-rhoden-1-48.13987/","https://shipsofscale.com/sosforums/threads/1-12-scale-alfa-romeo-8c-2300-roadster-build-log-completed-build.10977/page-10","RDN1954",null,"<tr><td><strong>Plane - Fokker</strong></td><td>RDN1954</td><td><a href=\"https://shipsofscale.com/sosforums/threads/fokker-d-vii-rhoden-1-48.13987/\">Fokker D.VII Rhoden 1:48</a></td><td></td></tr>","<tr><td><strong>Plane - Fokker</strong></td>","<td>RDN1954</td>","<td><a href=\"https://shipsofscale.com/sosforums/threads/fokker-d-vii-rhoden-1-48.13987/\">Fokker D.VII Rhoden 1:48</a></td>",0,"<td></td></tr>",""]
[" ","Model Airways Fokker Eindecker [COMPLETED BUILD]","https://shipsofscale.com/sosforums/threads/model-airways-fokker-eindecker-completed-build.10142/","https://shipsofscale.com/sosforums/threads/model-airways-fokker-eindecker-completed-build.10142/page-4","François",4,"<tr><td><strong> </strong></td><td>François</td><td><a href=\"https://shipsofscale.com/sosforums/threads/model-airways-fokker-eindecker-completed-build.10142/\">Model Airways Fokker Eindecker [COMPLETED BUILD]</a></td><td><a href=\"https://shipsofscale.com/sosforums/threads/model-airways-fokker-eindecker-completed-build.10142/page-4\">Page 4</a></td></tr>","<tr><td><strong> </strong></td>","<td>François</td>","<td><a href=\"https://shipsofscale.com/sosforums/threads/model-airways-fokker-eindecker-completed-build.10142/\">Model Airways Fokker Eindecker [COMPLETED BUILD]</a></td>",4,"<td><a href=\"https://shipsofscale.com/sosforums/threads/model-airways-fokker-eindecker-completed-build.10142/page-4\">Page 4</a></td></tr>",""]
[" ",null,null,null,null,null,"<tr><td><strong> </strong></td><td></td><td><a href=\"\"></a></td><td></td></tr>","<tr><td><strong> </strong></td>","<td></td>","<td><a href=\"\"></a></td>",0,"<td></td></tr>",""]
["Plane - Fokker Spin III","Fokker Spin III, scale 1:48, scratch build [COMPLETED BUILD]","https://shipsofscale.com/sosforums/threads/fokker-spin-iii-scale-1-48-scratch-build-completed-build.13988/","https://shipsofscale.com/sosforums/threads/fokker-spin-iii-scale-1-48-scratch-build-completed-build.13988/page-15","RDN1954",15,"<tr><td><strong>Plane - Fokker Spin III</strong></td><td>RDN1954</td><td><a href=\"https://shipsofscale.com/sosforums/threads/fokker-spin-iii-scale-1-48-scratch-build-completed-build.13988/\">Fokker Spin III, scale 1:48, scratch build [COMPLETED BUILD]</a></td><td><a href=\"https://shipsofscale.com/sosforums/threads/fokker-spin-iii-scale-1-48-scratch-build-completed-build.13988/page-15\">Page 15</a></td></tr>","<tr><td><strong>Plane - Fokker Spin III</strong></td>","<td>RDN1954</td>","<td><a href=\"https://shipsofscale.com/sosforums/threads/fokker-spin-iii-scale-1-48-scratch-build-completed-build.13988/\">Fokker Spin III, scale 1:48, scratch build [COMPLETED BUILD]</a></td>",15,"<td><a href=\"https://shipsofscale.com/sosforums/threads/fokker-spin-iii-scale-1-48-scratch-build-completed-build.13988/page-15\">Page 15</a></td></tr>",""]
[" ",null,null,null,null,null,"<tr><td><strong> </strong></td><td></td><td><a href=\"\"></a></td><td></td></tr>","<tr><td><strong> </strong></td>","<td></td>","<td><a href=\"\"></a></td>",0,"<td></td></tr>",""]
["Plane - MB 339 A","1/72 Italeri MB 339 A during Falklands War 1982","https://shipsofscale.com/sosforums/threads/1-72-italeri-mb-339-a-during-falklands-war-1982.10033/","https://shipsofscale.com/sosforums/threads/model-airways-fokker-eindecker-completed-build.10142/page-4","SigEp Ziggy",null,"<tr><td><strong>Plane - MB 339 A</strong></td><td>SigEp Ziggy</td><td><a href=\"https://shipsofscale.com/sosforums/threads/1-72-italeri-mb-339-a-during-falklands-war-1982.10033/\">1/72 Italeri MB 339 A during Falklands War 1982</a></td><td></td></tr>","<tr><td><strong>Plane - MB 339 A</strong></td>","<td>SigEp Ziggy</td>","<td><a href=\"https://shipsofscale.com/sosforums/threads/1-72-italeri-mb-339-a-during-falklands-war-1982.10033/\">1/72 Italeri MB 339 A during Falklands War 1982</a></td>",0,"<td></td></tr>",""]
[" ",null,null,null,null,null,"<tr><td><strong> </strong></td><td></td><td><a href=\"\"></a></td><td></td></tr>","<tr><td><strong> </strong></td>","<td></td>","<td><a href=\"\"></a></td>",0,"<td></td></tr>",""]
["Plane - Mercede Engine","Mercedes WW I Aero Engine (Model Airways - 1:16) [COMPLETED BUILD]","https://shipsofscale.com/sosforums/threads/mercedes-ww-i-aero-engine-model-airways-1-16-completed-build.10824/","https://shipsofscale.com/sosforums/threads/brabham-bt44b-martini-1975-by-tamiya-1-12th-scale.11257/page-2","JohnR",null,"<tr><td><strong>Plane - Mercede Engine</strong></td><td>JohnR</td><td><a href=\"https://shipsofscale.com/sosforums/threads/mercedes-ww-i-aero-engine-model-airways-1-16-completed-build.10824/\">Mercedes WW I Aero Engine (Model Airways - 1:16) [COMPLETED BUILD]</a></td><td></td></tr>","<tr><td><strong>Plane - Mercede Engine</strong></td>","<td>JohnR</td>","<td><a href=\"https://shipsofscale.com/sosforums/threads/mercedes-ww-i-aero-engine-model-airways-1-16-completed-build.10824/\">Mercedes WW I Aero Engine (Model Airways - 1:16) [COMPLETED BUILD]</a></td>",0,"<td></td></tr>",""]
[" ",null,null,null,null,null,"<tr><td><strong> </strong></td><td></td><td><a href=\"\"></a></td><td></td></tr>","<tr><td><strong> </strong></td>","<td></td>","<td><a href=\"\"></a></td>",0,"<td></td></tr>",""]
["Plane - NHI H-3","NHI Kolibri N-3, scale 1:48, scratch build","https://shipsofscale.com/sosforums/threads/nhi-kolibri-n-3-scale-1-48-scratch-build.15209/","https://shipsofscale.com/sosforums/threads/nhi-kolibri-n-3-scale-1-48-scratch-build.15209/page-19","RDN1954",19,"<tr><td><strong>Plane - NHI H-3</strong></td><td>RDN1954</td><td><a href=\"https://shipsofscale.com/sosforums/threads/nhi-kolibri-n-3-scale-1-48-scratch-build.15209/\">NHI Kolibri N-3, scale 1:48, scratch build</a></td><td><a href=\"https://shipsofscale.com/sosforums/threads/nhi-kolibri-n-3-scale-1-48-scratch-build.15209/page-19\">Page 19</a></td></tr>","<tr><td><strong>Plane - NHI H-3</strong></td>","<td>RDN1954</td>","<td><a href=\"https://shipsofscale.com/sosforums/threads/nhi-kolibri-n-3-scale-1-48-scratch-build.15209/\">NHI Kolibri N-3, scale 1:48, scratch build</a></td>",19,"<td><a href=\"https://shipsofscale.com/sosforums/threads/nhi-kolibri-n-3-scale-1-48-scratch-build.15209/page-19\">Page 19</a></td></tr>",""]
[" ",null,null,null,null,null,"<tr><td><strong> </strong></td><td></td><td><a href=\"\"></a></td><td></td></tr>","<tr><td><strong> </strong></td>","<td></td>","<td><a href=\"\"></a></td>",0,"<td></td></tr>",""]
["Plane - Oro Jackson","Airfix SEPECAT JAGUAR GR1 1/48 by Smithy","https://shipsofscale.com/sosforums/threads/airfix-sepecat-jaguar-gr1-1-48-by-smithy.18048/","https://shipsofscale.com/sosforums/threads/airfix-sepecat-jaguar-gr1-1-48-by-smithy.18048/page-3","Smithy",3,"<tr><td><strong>Plane - Oro Jackson</strong></td><td>Smithy</td><td><a href=\"https://shipsofscale.com/sosforums/threads/airfix-sepecat-jaguar-gr1-1-48-by-smithy.18048/\">Airfix SEPECAT JAGUAR GR1 1/48 by Smithy</a></td><td><a href=\"https://shipsofscale.com/sosforums/threads/airfix-sepecat-jaguar-gr1-1-48-by-smithy.18048/page-3\">Page 3</a></td></tr>","<tr><td><strong>Plane - Oro Jackson</strong></td>","<td>Smithy</td>","<td><a href=\"https://shipsofscale.com/sosforums/threads/airfix-sepecat-jaguar-gr1-1-48-by-smithy.18048/\">Airfix SEPECAT JAGUAR GR1 1/48 by Smithy</a></td>",3,"<td><a href=\"https://shipsofscale.com/sosforums/threads/airfix-sepecat-jaguar-gr1-1-48-by-smithy.18048/page-3\">Page 3</a></td></tr>",""]
[" ",null,null,null,null,null,"<tr><td><strong> </strong></td><td></td><td><a href=\"\"></a></td><td></td></tr>","<tr><td><strong> </strong></td>","<td></td>","<td><a href=\"\"></a></td>",0,"<td></td></tr>",""]
["Plane - P-38 Lightning","Guillows P-38 Lightning","https://shipsofscale.com/sosforums/threads/guillows-p-38-lightning.15329/","https://shipsofscale.com/sosforums/threads/guillows-p-38-lightning.15329/page-19","Dean62",19,"<tr><td><strong>Plane - P-38 Lightning</strong></td><td>Dean62</td><td><a href=\"https://shipsofscale.com/sosforums/threads/guillows-p-38-lightning.15329/\">Guillows P-38 Lightning</a></td><td><a href=\"https://shipsofscale.com/sosforums/threads/guillows-p-38-lightning.15329/page-19\">Page 19</a></td></tr>","<tr><td><strong>Plane - P-38 Lightning</strong></td>","<td>Dean62</td>","<td><a href=\"https://shipsofscale.com/sosforums/threads/guillows-p-38-lightning.15329/\">Guillows P-38 Lightning</a></td>",19,"<td><a href=\"https://shipsofscale.com/sosforums/threads/guillows-p-38-lightning.15329/page-19\">Page 19</a></td></tr>",""]
[" ",null,null,null,null,null,"<tr><td><strong> </strong></td><td></td><td><a href=\"\"></a></td><td></td></tr>","<tr><td><strong> </strong></td>","<td></td>","<td><a href=\"\"></a></td>",0,"<td></td></tr>",""]
["Plane - Sopwith Camel","Model Airways Sopwith Camel [COMPLETED BUILD]","https://shipsofscale.com/sosforums/threads/model-airways-sopwith-camel-completed-build.9931/","https://shipsofscale.com/sosforums/threads/model-airways-sopwith-camel-completed-build.9931/page-6","Donnie",6,"<tr><td><strong>Plane - Sopwith Camel</strong></td><td>Donnie</td><td><a href=\"https://shipsofscale.com/sosforums/threads/model-airways-sopwith-camel-completed-build.9931/\">Model Airways Sopwith Camel [COMPLETED BUILD]</a></td><td><a href=\"https://shipsofscale.com/sosforums/threads/model-airways-sopwith-camel-completed-build.9931/page-6\">Page 6</a></td></tr>","<tr><td><strong>Plane - Sopwith Camel</strong></td>","<td>Donnie</td>","<td><a href=\"https://shipsofscale.com/sosforums/threads/model-airways-sopwith-camel-completed-build.9931/\">Model Airways Sopwith Camel [COMPLETED BUILD]</a></td>",6,"<td><a href=\"https://shipsofscale.com/sosforums/threads/model-airways-sopwith-camel-completed-build.9931/page-6\">Page 6</a></td></tr>",""]
[" ","Model Airways Sopwith Camel 1/16 scale [COMPLETED BUILD]","https://shipsofscale.com/sosforums/threads/model-airways-sopwith-camel-1-16-scale-completed-build.9260/","https://shipsofscale.com/sosforums/threads/model-airways-sopwith-camel-1-16-scale-completed-build.9260/page-27","Dean62",27,"<tr><td><strong> </strong></td><td>Dean62</td><td><a href=\"https://shipsofscale.com/sosforums/threads/model-airways-sopwith-camel-1-16-scale-completed-build.9260/\">Model Airways Sopwith Camel 1/16 scale [COMPLETED BUILD]</a></td><td><a href=\"https://shipsofscale.com/sosforums/threads/model-airways-sopwith-camel-1-16-scale-completed-build.9260/page-27\">Page 27</a></td></tr>","<tr><td><strong> </strong></td>","<td>Dean62</td>","<td><a href=\"https://shipsofscale.com/sosforums/threads/model-airways-sopwith-camel-1-16-scale-completed-build.9260/\">Model Airways Sopwith Camel 1/16 scale [COMPLETED BUILD]</a></td>",27,"<td><a href=\"https://shipsofscale.com/sosforums/threads/model-airways-sopwith-camel-1-16-scale-completed-build.9260/page-27\">Page 27</a></td></tr>",""]
[" ","Sopwith Camel & Fokker Triplane.","https://shipsofscale.com/sosforums/threads/sopwith-camel-fokker-triplane.17661/","https://shipsofscale.com/sosforums/threads/chevrolet-corvette-2022-stingray-coupe.17545/page-2","Hornet",null,"<tr><td><strong> </strong></td><td>Hornet</td><td><a href=\"https://shipsofscale.com/sosforums/threads/sopwith-camel-fokker-triplane.17661/\">Sopwith Camel & Fokker Triplane.</a></td><td></td></tr>","<tr><td><strong> </strong></td>","<td>Hornet</td>","<td><a href=\"https://shipsofscale.com/sosforums/threads/sopwith-camel-fokker-triplane.17661/\">Sopwith Camel & Fokker Triplane.</a></td>",0,"<td></td></tr>",""]
[" ","Sopwith Camel F-1, WWI Fighter, 1:16 scale (3/4\" = 1')","https://shipsofscale.com/sosforums/threads/sopwith-camel-f-1-wwi-fighter-1-16-scale-3-4-1.3206/","https://shipsofscale.com/sosforums/threads/sopwith-camel-f-1-wwi-fighter-1-16-scale-3-4-1.3206/page-2","DocBlake",2,"<tr><td><strong> </strong></td><td>DocBlake</td><td><a href=\"https://shipsofscale.com/sosforums/threads/sopwith-camel-f-1-wwi-fighter-1-16-scale-3-4-1.3206/\">Sopwith Camel F-1, WWI Fighter, 1:16 scale (3/4\" = 1')</a></td><td><a href=\"https://shipsofscale.com/sosforums/threads/sopwith-camel-f-1-wwi-fighter-1-16-scale-3-4-1.3206/page-2\">Page 2</a></td></tr>","<tr><td><strong> </strong></td>","<td>DocBlake</td>","<td><a href=\"https://shipsofscale.com/sosforums/threads/sopwith-camel-f-1-wwi-fighter-1-16-scale-3-4-1.3206/\">Sopwith Camel F-1, WWI Fighter, 1:16 scale (3/4\" = 1')</a></td>",2,"<td><a href=\"https://shipsofscale.com/sosforums/threads/sopwith-camel-f-1-wwi-fighter-1-16-scale-3-4-1.3206/page-2\">Page 2</a></td></tr>",""]
[" ",null,null,null,null,null,"<tr><td><strong> </strong></td><td></td><td><a href=\"\"></a></td><td></td></tr>","<tr><td><strong> </strong></td>","<td></td>","<td><a href=\"\"></a></td>",0,"<td></td></tr>",""]
["Plane - Wright Flier","Wright Brothers \"Flyer\" 1903","https://shipsofscale.com/sosforums/threads/wright-brothers-flyer-1903.15124/","https://shipsofscale.com/sosforums/threads/wright-brothers-flyer-1903.15124/page-15","Daniel20",15,"<tr><td><strong>Plane - Wright Flier</strong></td><td>Daniel20</td><td><a href=\"https://shipsofscale.com/sosforums/threads/wright-brothers-flyer-1903.15124/\">Wright Brothers \"Flyer\" 1903</a></td><td><a href=\"https://shipsofscale.com/sosforums/threads/wright-brothers-flyer-1903.15124/page-15\">Page 15</a></td></tr>","<tr><td><strong>Plane - Wright Flier</strong></td>","<td>Daniel20</td>","<td><a href=\"https://shipsofscale.com/sosforums/threads/wright-brothers-flyer-1903.15124/\">Wright Brothers \"Flyer\" 1903</a></td>",15,"<td><a href=\"https://shipsofscale.com/sosforums/threads/wright-brothers-flyer-1903.15124/page-15\">Page 15</a></td></tr>",""]
[" ",null,null,null,null,null,"<tr><td><strong> </strong></td><td></td><td><a href=\"\"></a></td><td></td></tr>","<tr><td><strong> </strong></td>","<td></td>","<td><a href=\"\"></a></td>",0,"<td></td></tr>",""]
["Plane - Wright Flyer","Model Airways-The Wright Flyer-Scale 1/16","https://shipsofscale.com/sosforums/threads/model-airways-the-wright-flyer-scale-1-16.3075/","https://shipsofscale.com/sosforums/threads/model-airways-the-wright-flyer-scale-1-16.3075/page-4","Barry1",4,"<tr><td><strong>Plane - Wright Flyer</strong></td><td>Barry1</td><td><a href=\"https://shipsofscale.com/sosforums/threads/model-airways-the-wright-flyer-scale-1-16.3075/\">Model Airways-The Wright Flyer-Scale 1/16</a></td><td><a href=\"https://shipsofscale.com/sosforums/threads/model-airways-the-wright-flyer-scale-1-16.3075/page-4\">Page 4</a></td></tr>","<tr><td><strong>Plane - Wright Flyer</strong></td>","<td>Barry1</td>","<td><a href=\"https://shipsofscale.com/sosforums/threads/model-airways-the-wright-flyer-scale-1-16.3075/\">Model Airways-The Wright Flyer-Scale 1/16</a></td>",4,"<td><a href=\"https://shipsofscale.com/sosforums/threads/model-airways-the-wright-flyer-scale-1-16.3075/page-4\">Page 4</a></td></tr>",""]
[" ","Wright Flyer - Model Airways - 1:16 [COMPLETED BUILD]","https://shipsofscale.com/sosforums/threads/wright-flyer-model-airways-1-16-completed-build.8858/","https://shipsofscale.com/sosforums/threads/wright-flyer-model-airways-1-16-completed-build.8858/page-2","JohnR",2,"<tr><td><strong> </strong></td><td>JohnR</td><td><a href=\"https://shipsofscale.com/sosforums/threads/wright-flyer-model-airways-1-16-completed-build.8858/\">Wright Flyer - Model Airways - 1:16 [COMPLETED BUILD]</a></td><td><a href=\"https://shipsofscale.com/sosforums/threads/wright-flyer-model-airways-1-16-completed-build.8858/page-2\">Page 2</a></td></tr>","<tr><td><strong> </strong></td>","<td>JohnR</td>","<td><a href=\"https://shipsofscale.com/sosforums/threads/wright-flyer-model-airways-1-16-completed-build.8858/\">Wright Flyer - Model Airways - 1:16 [COMPLETED BUILD]</a></td>",2,"<td><a href=\"https://shipsofscale.com/sosforums/threads/wright-flyer-model-airways-1-16-completed-build.8858/page-2\">Page 2</a></td></tr>",""]
[" ",null,null,null,null,null,"<tr><td><strong> </strong></td><td></td><td><a href=\"\"></a></td><td></td></tr>","<tr><td><strong> </strong></td>","<td></td>","<td><a href=\"\"></a></td>",0,"<td></td></tr>",""]
["Planes - 1/72","My 1/72 scale aircraft","https://shipsofscale.com/sosforums/threads/my-1-72-scale-aircraft.17224/","https://shipsofscale.com/sosforums/threads/my-1-72-scale-aircraft.17224/page-24","Dean62",24,"<tr><td><strong>Planes - 1/72</strong></td><td>Dean62</td><td><a href=\"https://shipsofscale.com/sosforums/threads/my-1-72-scale-aircraft.17224/\">My 1/72 scale aircraft</a></td><td><a href=\"https://shipsofscale.com/sosforums/threads/my-1-72-scale-aircraft.17224/page-24\">Page 24</a></td></tr>","<tr><td><strong>Planes - 1/72</strong></td>","<td>Dean62</td>","<td><a href=\"https://shipsofscale.com/sosforums/threads/my-1-72-scale-aircraft.17224/\">My 1/72 scale aircraft</a></td>",24,"<td><a href=\"https://shipsofscale.com/sosforums/threads/my-1-72-scale-aircraft.17224/page-24\">Page 24</a></td></tr>",""]
[" ",null,null,null,null,null,"<tr><td><strong> </strong></td><td></td><td><a href=\"\"></a></td><td></td></tr>","<tr><td><strong> </strong></td>","<td></td>","<td><a href=\"\"></a></td>",0,"<td></td></tr>",""]
["Planes - Various","My plane builds since 2008","https://shipsofscale.com/sosforums/threads/my-plane-builds-since-2008.17801/","https://shipsofscale.com/sosforums/threads/nhi-kolibri-n-3-scale-1-48-scratch-build.15209/page-19","kg4kpg",null,"<tr><td><strong>Planes - Various</strong></td><td>kg4kpg</td><td><a href=\"https://shipsofscale.com/sosforums/threads/my-plane-builds-since-2008.17801/\">My plane builds since 2008</a></td><td></td></tr>","<tr><td><strong>Planes - Various</strong></td>","<td>kg4kpg</td>","<td><a href=\"https://shipsofscale.com/sosforums/threads/my-plane-builds-since-2008.17801/\">My plane builds since 2008</a></td>",0,"<td></td></tr>",""]
[" ",null,null,null,null,null,"<tr><td><strong> </strong></td><td></td><td><a href=\"\"></a></td><td></td></tr>","<tr><td><strong> </strong></td>","<td></td>","<td><a href=\"\"></a></td>",0,"<td></td></tr>",""]
[" ",null,null,null,null,null,"</tbody></table><hr /><p><a href=\"#TOP\">Back to Top</a></p><div style=\"text-align: left;\"><hr /><a name=\"S\"></a><strong>S</strong></div><table width=\"100%\" border=\"0\"><tbody><tr><td width=\"20%\"><span style=\"text-decoration: underline;\"><strong>Model type & name</strong></span></td><td width=\"12%\"><span style=\"text-decoration: underline;\"><strong>By</strong></span></td><td width=\"62%\"><span style=\"text-decoration: underline;\"><strong>Topic</strong></span></td><td width=\"6%\"><span style=\"text-decoration: underline;\"><strong>Latest</strong></span></td>",null,null,null,null,null,""]
["Ships - Black Pearl","Black Pearl - Metal Earth","https://shipsofscale.com/sosforums/threads/black-pearl-metal-earth.8716/","https://shipsofscale.com/sosforums/threads/sopwith-camel-f-1-wwi-fighter-1-16-scale-3-4-1.3206/page-2","JohnR",null,"<tr><td><strong>Ships - Black Pearl</strong></td><td>JohnR</td><td><a href=\"https://shipsofscale.com/sosforums/threads/black-pearl-metal-earth.8716/\">Black Pearl - Metal Earth</a></td><td></td></tr>","<tr><td><strong>Ships - Black Pearl</strong></td>","<td>JohnR</td>","<td><a href=\"https://shipsofscale.com/sosforums/threads/black-pearl-metal-earth.8716/\">Black Pearl - Metal Earth</a></td>",0,"<td></td></tr>",""]
[" ",null,null,null,null,null,"<tr><td><strong> </strong></td><td></td><td><a href=\"\"></a></td><td></td></tr>","<tr><td><strong> </strong></td>","<td></td>","<td><a href=\"\"></a></td>",0,"<td></td></tr>",""]
["Smithy\nAvro Anson Mk.1 - Plastic by Airfix in 1/48 Scale - Build by Smithy\nSmithy Mar 14, 2025 2\nReplies38\nViews713\n46 minutes ago\nColonelKrypton\nFrançois\nMarvel's Hydra Coupe 1/12 scale full scratch build\nFrançois Jul 24, 2024 2 3 4 5 6 7 8\nReplies145\nViews4,506\nYesterday at 8:09 AM\nrshousha\nrshousha\nRDN1954\nNHI Kolibri N-3, scale 1:48, scratch build\nRDN1954 Aug 30, 2024 2 3 4 5 6 7 8 9 10 11\nReplies203\nViews5,185\nMonday at 9:44 PM\nPathfinder65\nPathfinder65\nDean62\nPocher 1:8 scale Porsche 917K\nDean62 Nov 7, 2024 2 3 4 5 6 7 8 9\nReplies177\nViews4,508\nSunday at 12:47 PM\nDean62\nDean62\nDean62\nGuillows P-38 Lightning\nDean62 Sep 17, 2024 8 9 10 11 12 13 14 15 16 17\nReplies327\nViews10,789\nMar 22, 2025\nJohannes\nDonnie\nBugatti Type 35B [COMPLETED BUILD]\nDonnie Jul 31, 2024 2 3 4\nReplies61\nViews2,366\nMar 1, 2025\ncdnfurball\ncdnfurball","Avro Anson Mk.1 - Plastic by Airfix in 1/48 Scale - Build by Smithy","https://shipsofscale.com/sosforums/threads/avro-anson-mk-1-plastic-by-airfix-in-1-48-scale-build-by-smithy.16529/","https://shipsofscale.com/sosforums/threads/avro-anson-mk-1-plastic-by-airfix-in-1-48-scale-build-by-smithy.16529/page-8","Smithy",8,"<tr><td><strong>Smithy\nAvro Anson Mk.1 - Plastic by Airfix in 1/48 Scale - Build by Smithy\nSmithy Mar 14, 2025 2\nReplies38\nViews713\n46 minutes ago\nColonelKrypton\nFrançois\nMarvel's Hydra Coupe 1/12 scale full scratch build\nFrançois Jul 24, 2024 2 3 4 5 6 7 8\nReplies145\nViews4,506\nYesterday at 8:09 AM\nrshousha\nrshousha\nRDN1954\nNHI Kolibri N-3, scale 1:48, scratch build\nRDN1954 Aug 30, 2024 2 3 4 5 6 7 8 9 10 11\nReplies203\nViews5,185\nMonday at 9:44 PM\nPathfinder65\nPathfinder65\nDean62\nPocher 1:8 scale Porsche 917K\nDean62 Nov 7, 2024 2 3 4 5 6 7 8 9\nReplies177\nViews4,508\nSunday at 12:47 PM\nDean62\nDean62\nDean62\nGuillows P-38 Lightning\nDean62 Sep 17, 2024 8 9 10 11 12 13 14 15 16 17\nReplies327\nViews10,789\nMar 22, 2025\nJohannes\nDonnie\nBugatti Type 35B [COMPLETED BUILD]\nDonnie Jul 31, 2024 2 3 4\nReplies61\nViews2,366\nMar 1, 2025\ncdnfurball\ncdnfurball</strong></td><td>Smithy</td><td><a href=\"https://shipsofscale.com/sosforums/threads/avro-anson-mk-1-plastic-by-airfix-in-1-48-scale-build-by-smithy.16529/\">Avro Anson Mk.1 - Plastic by Airfix in 1/48 Scale - Build by Smithy</a></td><td><a href=\"https://shipsofscale.com/sosforums/threads/avro-anson-mk-1-plastic-by-airfix-in-1-48-scale-build-by-smithy.16529/page-8\">Page 8</a></td></tr>","<tr><td><strong>Smithy\nAvro Anson Mk.1 - Plastic by Airfix in 1/48 Scale - Build by Smithy\nSmithy Mar 14, 2025 2\nReplies38\nViews713\n46 minutes ago\nColonelKrypton\nFrançois\nMarvel's Hydra Coupe 1/12 scale full scratch build\nFrançois Jul 24, 2024 2 3 4 5 6 7 8\nReplies145\nViews4,506\nYesterday at 8:09 AM\nrshousha\nrshousha\nRDN1954\nNHI Kolibri N-3, scale 1:48, scratch build\nRDN1954 Aug 30, 2024 2 3 4 5 6 7 8 9 10 11\nReplies203\nViews5,185\nMonday at 9:44 PM\nPathfinder65\nPathfinder65\nDean62\nPocher 1:8 scale Porsche 917K\nDean62 Nov 7, 2024 2 3 4 5 6 7 8 9\nReplies177\nViews4,508\nSunday at 12:47 PM\nDean62\nDean62\nDean62\nGuillows P-38 Lightning\nDean62 Sep 17, 2024 8 9 10 11 12 13 14 15 16 17\nReplies327\nViews10,789\nMar 22, 2025\nJohannes\nDonnie\nBugatti Type 35B [COMPLETED BUILD]\nDonnie Jul 31, 2024 2 3 4\nReplies61\nViews2,366\nMar 1, 2025\ncdnfurball\ncdnfurball</strong></td>","<td>Smithy</td>","<td><a href=\"https://shipsofscale.com/sosforums/threads/avro-anson-mk-1-plastic-by-airfix-in-1-48-scale-build-by-smithy.16529/\">Avro Anson Mk.1 - Plastic by Airfix in 1/48 Scale - Build by Smithy</a></td>",8,"<td><a href=\"https://shipsofscale.com/sosforums/threads/avro-anson-mk-1-plastic-by-airfix-in-1-48-scale-build-by-smithy.16529/page-8\">Page 8</a></td></tr>",""]
[" ",null,null,null,null,null,"<tr><td><strong> </strong></td><td></td><td><a href=\"\"></a></td><td></td></tr>","<tr><td><strong> </strong></td>","<td></td>","<td><a href=\"\"></a></td>",0,"<td></td></tr>",""]
[" ",null,null,null,null,null,"</tbody></table><hr /><p><a href=\"#TOP\">Back to Top</a></p><div style=\"text-align: left;\"><hr /><a name=\"T\"></a><strong>T</strong></div><table width=\"100%\" border=\"0\"><tbody><tr><td width=\"20%\"><span style=\"text-decoration: underline;\"><strong>Model type & name</strong></span></td><td width=\"12%\"><span style=\"text-decoration: underline;\"><strong>By</strong></span></td><td width=\"62%\"><span style=\"text-decoration: underline;\"><strong>Topic</strong></span></td><td width=\"6%\"><span style=\"text-decoration: underline;\"><strong>Latest</strong></span></td>",null,null,null,null,null,""]
["Trailways - Bus","B-Type Bus OCCRE 1/24 scale","https://shipsofscale.com/sosforums/threads/b-type-bus-occre-1-24-scale.1714/","https://shipsofscale.com/sosforums/threads/b-type-bus-occre-1-24-scale.1714/page-2","Aginvicta",2,"<tr><td><strong>Trailways - Bus</strong></td><td>Aginvicta</td><td><a href=\"https://shipsofscale.com/sosforums/threads/b-type-bus-occre-1-24-scale.1714/\">B-Type Bus OCCRE 1/24 scale</a></td><td><a href=\"https://shipsofscale.com/sosforums/threads/b-type-bus-occre-1-24-scale.1714/page-2\">Page 2</a></td></tr>","<tr><td><strong>Trailways - Bus</strong></td>","<td>Aginvicta</td>","<td><a href=\"https://shipsofscale.com/sosforums/threads/b-type-bus-occre-1-24-scale.1714/\">B-Type Bus OCCRE 1/24 scale</a></td>",2,"<td><a href=\"https://shipsofscale.com/sosforums/threads/b-type-bus-occre-1-24-scale.1714/page-2\">Page 2</a></td></tr>",""]
[" ",null,null,null,null,null,"<tr><td><strong> </strong></td><td></td><td><a href=\"\"></a></td><td></td></tr>","<tr><td><strong> </strong></td>","<td></td>","<td><a href=\"\"></a></td>",0,"<td></td></tr>",""]
["Trailways - Coffee Wagon","Guns of History - United States Christian Commission Civil War Coffee Wagon - Model Shipways - Build Log NCC (Navy-Curtis Craft) - Scale 1:16","https://shipsofscale.com/sosforums/threads/guns-of-history-united-states-christian-commission-civil-war-coffee-wagon-model-shipways-build-log-ncc-navy-curtis-craft-scale-1-16.12496/","https://shipsofscale.com/sosforums/threads/brabham-bt44b-martini-1975-by-tamiya-1-12th-scale.11257/page-2","BMT",null,"<tr><td><strong>Trailways - Coffee Wagon</strong></td><td>BMT</td><td><a href=\"https://shipsofscale.com/sosforums/threads/guns-of-history-united-states-christian-commission-civil-war-coffee-wagon-model-shipways-build-log-ncc-navy-curtis-craft-scale-1-16.12496/\">Guns of History - United States Christian Commission Civil War Coffee Wagon - Model Shipways - Build Log NCC (Navy-Curtis Craft) - Scale 1:16</a></td><td></td></tr>","<tr><td><strong>Trailways - Coffee Wagon</strong></td>","<td>BMT</td>","<td><a href=\"https://shipsofscale.com/sosforums/threads/guns-of-history-united-states-christian-commission-civil-war-coffee-wagon-model-shipways-build-log-ncc-navy-curtis-craft-scale-1-16.12496/\">Guns of History - United States Christian Commission Civil War Coffee Wagon - Model Shipways - Build Log NCC (Navy-Curtis Craft) - Scale 1:16</a></td>",0,"<td></td></tr>",""]
[" ",null,null,null,null,null,"<tr><td><strong> </strong></td><td></td><td><a href=\"\"></a></td><td></td></tr>","<tr><td><strong> </strong></td>","<td></td>","<td><a href=\"\"></a></td>",0,"<td></td></tr>",""]
["Trailways - Concord Stagecoach","Model Trailways Concord Stagecoach 1:12 Scale","https://shipsofscale.com/sosforums/threads/model-trailways-concord-stagecoach-1-12-scale.2771/","https://shipsofscale.com/sosforums/threads/model-trailways-concord-stagecoach-1-12-scale.2771/page-4","Barry1",4,"<tr><td><strong>Trailways - Concord Stagecoach</strong></td><td>Barry1</td><td><a href=\"https://shipsofscale.com/sosforums/threads/model-trailways-concord-stagecoach-1-12-scale.2771/\">Model Trailways Concord Stagecoach 1:12 Scale</a></td><td><a href=\"https://shipsofscale.com/sosforums/threads/model-trailways-concord-stagecoach-1-12-scale.2771/page-4\">Page 4</a></td></tr>","<tr><td><strong>Trailways - Concord Stagecoach</strong></td>","<td>Barry1</td>","<td><a href=\"https://shipsofscale.com/sosforums/threads/model-trailways-concord-stagecoach-1-12-scale.2771/\">Model Trailways Concord Stagecoach 1:12 Scale</a></td>",4,"<td><a href=\"https://shipsofscale.com/sosforums/threads/model-trailways-concord-stagecoach-1-12-scale.2771/page-4\">Page 4</a></td></tr>",""]
[" ","Model Trailways Concord Stagecoach 1:12 scale","https://shipsofscale.com/sosforums/threads/model-trailways-concord-stagecoach-1-12-scale.1202/","https://shipsofscale.com/sosforums/threads/model-trailways-concord-stagecoach-1-12-scale.1202/page-2","DenisR",2,"<tr><td><strong> </strong></td><td>DenisR</td><td><a href=\"https://shipsofscale.com/sosforums/threads/model-trailways-concord-stagecoach-1-12-scale.1202/\">Model Trailways Concord Stagecoach 1:12 scale</a></td><td><a href=\"https://shipsofscale.com/sosforums/threads/model-trailways-concord-stagecoach-1-12-scale.1202/page-2\">Page 2</a></td></tr>","<tr><td><strong> </strong></td>","<td>DenisR</td>","<td><a href=\"https://shipsofscale.com/sosforums/threads/model-trailways-concord-stagecoach-1-12-scale.1202/\">Model Trailways Concord Stagecoach 1:12 scale</a></td>",2,"<td><a href=\"https://shipsofscale.com/sosforums/threads/model-trailways-concord-stagecoach-1-12-scale.1202/page-2\">Page 2</a></td></tr>",""]
[" ","Trailways - Concord Stagecoach","https://shipsofscale.com/sosforums/threads/model-trailways-1-2-scale-concord-stagecoach.17146/","https://shipsofscale.com/sosforums/threads/guillows-p-38-lightning.15329/page-19","Lance",null,"<tr><td><strong> </strong></td><td>Lance</td><td><a href=\"https://shipsofscale.com/sosforums/threads/model-trailways-1-2-scale-concord-stagecoach.17146/\">Trailways - Concord Stagecoach</a></td><td></td></tr>","<tr><td><strong> </strong></td>","<td>Lance</td>","<td><a href=\"https://shipsofscale.com/sosforums/threads/model-trailways-1-2-scale-concord-stagecoach.17146/\">Trailways - Concord Stagecoach</a></td>",0,"<td></td></tr>",""]
[" ",null,null,null,null,null,"<tr><td><strong> </strong></td><td></td><td><a href=\"\"></a></td><td></td></tr>","<tr><td><strong> </strong></td>","<td></td>","<td><a href=\"\"></a></td>",0,"<td></td></tr>",""]
["Trailways - Conestoga Wagon","Model Trailways Conestoga Wagon 1:12 Scale","https://shipsofscale.com/sosforums/threads/model-trailways-conestoga-wagon-1-12-scale.2961/","https://shipsofscale.com/sosforums/threads/model-trailways-conestoga-wagon-1-12-scale.2961/page-2","Barry1",2,"<tr><td><strong>Trailways - Conestoga Wagon</strong></td><td>Barry1</td><td><a href=\"https://shipsofscale.com/sosforums/threads/model-trailways-conestoga-wagon-1-12-scale.2961/\">Model Trailways Conestoga Wagon 1:12 Scale</a></td><td><a href=\"https://shipsofscale.com/sosforums/threads/model-trailways-conestoga-wagon-1-12-scale.2961/page-2\">Page 2</a></td></tr>","<tr><td><strong>Trailways - Conestoga Wagon</strong></td>","<td>Barry1</td>","<td><a href=\"https://shipsofscale.com/sosforums/threads/model-trailways-conestoga-wagon-1-12-scale.2961/\">Model Trailways Conestoga Wagon 1:12 Scale</a></td>",2,"<td><a href=\"https://shipsofscale.com/sosforums/threads/model-trailways-conestoga-wagon-1-12-scale.2961/page-2\">Page 2</a></td></tr>",""]
[" ",null,null,null,null,null,"<tr><td><strong> </strong></td><td></td><td><a href=\"\"></a></td><td></td></tr>","<tr><td><strong> </strong></td>","<td></td>","<td><a href=\"\"></a></td>",0,"<td></td></tr>",""]
["Trailways - Medicine Wagon","Medicine Wagon","https://shipsofscale.com/sosforums/threads/medicine-wagon.15131/","https://shipsofscale.com/sosforums/threads/1964-dodge-330-ss-ramchargers.15552/page-2","Gravman",null,"<tr><td><strong>Trailways - Medicine Wagon</strong></td><td>Gravman</td><td><a href=\"https://shipsofscale.com/sosforums/threads/medicine-wagon.15131/\">Medicine Wagon</a></td><td></td></tr>","<tr><td><strong>Trailways - Medicine Wagon</strong></td>","<td>Gravman</td>","<td><a href=\"https://shipsofscale.com/sosforums/threads/medicine-wagon.15131/\">Medicine Wagon</a></td>",0,"<td></td></tr>",""]
[" ",null,null,null,null,null,"<tr><td><strong> </strong></td><td></td><td><a href=\"\"></a></td><td></td></tr>","<tr><td><strong> </strong></td>","<td></td>","<td><a href=\"\"></a></td>",0,"<td></td></tr>",""]
["Trailways - Oil Tank Wagon","Phillips 66 Oil Tank Wagon (Model Trailways 1:12) [COMPLETED BUILD]","https://shipsofscale.com/sosforums/threads/phillips-66-oil-tank-wagon-model-trailways-1-12-completed-build.7318/","https://shipsofscale.com/sosforums/threads/model-trailways-concord-stagecoach-1-12-scale.2771/page-4","JohnR",null,"<tr><td><strong>Trailways - Oil Tank Wagon</strong></td><td>JohnR</td><td><a href=\"https://shipsofscale.com/sosforums/threads/phillips-66-oil-tank-wagon-model-trailways-1-12-completed-build.7318/\">Phillips 66 Oil Tank Wagon (Model Trailways 1:12) [COMPLETED BUILD]</a></td><td></td></tr>","<tr><td><strong>Trailways - Oil Tank Wagon</strong></td>","<td>JohnR</td>","<td><a href=\"https://shipsofscale.com/sosforums/threads/phillips-66-oil-tank-wagon-model-trailways-1-12-completed-build.7318/\">Phillips 66 Oil Tank Wagon (Model Trailways 1:12) [COMPLETED BUILD]</a></td>",0,"<td></td></tr>",""]
[" ",null,null,null,null,null,"<tr><td><strong> </strong></td><td></td><td><a href=\"\"></a></td><td></td></tr>","<tr><td><strong> </strong></td>","<td></td>","<td><a href=\"\"></a></td>",0,"<td></td></tr>",""]
["Trailways - Stagecoach","Amati victory model stagecoach 1:10","https://shipsofscale.com/sosforums/threads/amati-victory-model-stagecoach-1-10.10177/","https://shipsofscale.com/sosforums/threads/model-airways-sopwith-camel-1-16-scale-completed-build.9260/page-27","sideliner",null,"<tr><td><strong>Trailways - Stagecoach</strong></td><td>sideliner</td><td><a href=\"https://shipsofscale.com/sosforums/threads/amati-victory-model-stagecoach-1-10.10177/\">Amati victory model stagecoach 1:10</a></td><td></td></tr>","<tr><td><strong>Trailways - Stagecoach</strong></td>","<td>sideliner</td>","<td><a href=\"https://shipsofscale.com/sosforums/threads/amati-victory-model-stagecoach-1-10.10177/\">Amati victory model stagecoach 1:10</a></td>",0,"<td></td></tr>",""]
[" ","Stagecoach Build - By Artesanía Latina [COMPLETED BUILD]","https://shipsofscale.com/sosforums/threads/stagecoach-build-by-artesan%C3%ADa-latina-completed-build.13490/","https://shipsofscale.com/sosforums/threads/stagecoach-build-by-artesan%C3%ADa-latina-completed-build.13490/page-5","STGCS",5,"<tr><td><strong> </strong></td><td>STGCS</td><td><a href=\"https://shipsofscale.com/sosforums/threads/stagecoach-build-by-artesan%C3%ADa-latina-completed-build.13490/\">Stagecoach Build - By Artesanía Latina [COMPLETED BUILD]</a></td><td><a href=\"https://shipsofscale.com/sosforums/threads/stagecoach-build-by-artesan%C3%ADa-latina-completed-build.13490/page-5\">Page 5</a></td></tr>","<tr><td><strong> </strong></td>","<td>STGCS</td>","<td><a href=\"https://shipsofscale.com/sosforums/threads/stagecoach-build-by-artesan%C3%ADa-latina-completed-build.13490/\">Stagecoach Build - By Artesanía Latina [COMPLETED BUILD]</a></td>",5,"<td><a href=\"https://shipsofscale.com/sosforums/threads/stagecoach-build-by-artesan%C3%ADa-latina-completed-build.13490/page-5\">Page 5</a></td></tr>",""]
[" ",null,null,null,null,null,"<tr><td><strong> </strong></td><td></td><td><a href=\"\"></a></td><td></td></tr>","<tr><td><strong> </strong></td>","<td></td>","<td><a href=\"\"></a></td>",0,"<td></td></tr>",""]
["Trailways - Steam Pumper","1869 Allerton Steam Pumper Model [COMPLETED BUILD]","https://shipsofscale.com/sosforums/threads/1869-allerton-steam-pumper-model-completed-build.8176/","https://shipsofscale.com/sosforums/threads/model-airways-fokker-eindecker-completed-build.10142/page-4","Bluebeard",null,"<tr><td><strong>Trailways - Steam Pumper</strong></td><td>Bluebeard</td><td><a href=\"https://shipsofscale.com/sosforums/threads/1869-allerton-steam-pumper-model-completed-build.8176/\">1869 Allerton Steam Pumper Model [COMPLETED BUILD]</a></td><td></td></tr>","<tr><td><strong>Trailways - Steam Pumper</strong></td>","<td>Bluebeard</td>","<td><a href=\"https://shipsofscale.com/sosforums/threads/1869-allerton-steam-pumper-model-completed-build.8176/\">1869 Allerton Steam Pumper Model [COMPLETED BUILD]</a></td>",0,"<td></td></tr>",""]
[" ",null,null,null,null,null,"<tr><td><strong> </strong></td><td></td><td><a href=\"\"></a></td><td></td></tr>","<tr><td><strong> </strong></td>","<td></td>","<td><a href=\"\"></a></td>",0,"<td></td></tr>",""]
["Trailways - Wells Fargo Stagecoach","Build Log: Wells Fargo Stagecoach 1/12","https://shipsofscale.com/sosforums/threads/build-log-wells-fargo-stagecoach-1-12.1536/","https://shipsofscale.com/sosforums/threads/build-log-wells-fargo-stagecoach-1-12.1536/page-2","grayson72",2,"<tr><td><strong>Trailways - Wells Fargo Stagecoach</strong></td><td>grayson72</td><td><a href=\"https://shipsofscale.com/sosforums/threads/build-log-wells-fargo-stagecoach-1-12.1536/\">Build Log: Wells Fargo Stagecoach 1/12</a></td><td><a href=\"https://shipsofscale.com/sosforums/threads/build-log-wells-fargo-stagecoach-1-12.1536/page-2\">Page 2</a></td></tr>","<tr><td><strong>Trailways - Wells Fargo Stagecoach</strong></td>","<td>grayson72</td>","<td><a href=\"https://shipsofscale.com/sosforums/threads/build-log-wells-fargo-stagecoach-1-12.1536/\">Build Log: Wells Fargo Stagecoach 1/12</a></td>",2,"<td><a href=\"https://shipsofscale.com/sosforums/threads/build-log-wells-fargo-stagecoach-1-12.1536/page-2\">Page 2</a></td></tr>",""]
[null,null,null,null,null,null,"</tbody></table><p>&#160;</p><hr /><p><a href=\"#TOP\">Back to Top</a></p><hr /><p>If you have any comments or require any corrections or amendments to this index, please post them <a href=\"http://www.modelshipbuilder.com/e107_plugins/forum/forum_viewtopic.php?9057\">here</a></p><p>&#160;</p>",""]